Workbook

Sheet 당첨번호
A1: NO | B1: b1 | C1: b2 | D1: b3 | E1: b4 | F1: b5 | G1: b6 | H1: 추천개수 | I1: 1등 | J1: 2등 | K1: 3등 | L1: 4등 | M1: 5등 | P1: 최대-현재 | Q1: 최초시작일 | R1: NO | S1: WEEKS | T1: DAYS | U1: MONTH | V1: 추천 정보 | AJ1: 누적지출 정보 | AU1: 10 번대 | AV1: 0 | AW1: 10 | AX1: 20 | AY1: 30 | AZ1: 40 | BA1: 50 | BB1: 60 | BC1: 70 | BD1: 80 | BE1: 90 | BF1: 100 | BG1: 110 | BH1: 120 | BI1: 130 | BJ1: 140 | BK1: 150 | BN1: 회치
A2: =A3+1 -> 1197 | V2: b1 | W2: b2 | X2: b3 | Y2: b4 | Z2: b5 | AA2: b6 | AB2: 추천개수 | AC2: 1등 | AD2: 2등 | AE2: 3등 | AF2: 4등 | AG2: 5등 | AH2: 당첨금 | AI2: 당첨일 | AJ2: 평균추천개수 | AK2: 총비용 | AL2: 게임당 비용 | AM2: 당첨금 (1등제외) | AN2: 1등 | AO2: 2등 | AP2: 3등 | AQ2: 4등 | AR2: 5등 | AU2: 빈도 | AV2: =COUNTIF($Q$4:$Q17,AV$1) -> 1 | AW2: =COUNTIF($Q$4:$Q17,AW$1) -> 1 | AX2: =COUNTIF($Q$4:$Q17,AX$1) -> 1 | AY2: =COUNTIF($Q$4:$Q17,AY$1) -> 2 | AZ2: =COUNTIF($Q$4:$Q17,AZ$1) -> 0 | BA2: =COUNTIF($Q$4:$Q17,BA$1) -> 1 | BB2: =COUNTIF($Q$4:$Q17,BB$1) -> 1 | BC2: =COUNTIF($Q$4:$Q17,BC$1) -> 0 | BD2: =COUNTIF($Q$4:$Q17,BD$1) -> 1 | BE2: =COUNTIF($Q$4:$Q17,BE$1) -> 0 | BF2: =COUNTIF($Q$4:$Q17,BF$1) -> 2 | BG2: =COUNTIF($Q$4:$Q17,BG$1) -> 0 | BH2: =COUNTIF($Q$4:$Q17,BH$1) -> 2 | BI2: =COUNTIF($Q$4:$Q17,BI$1) -> 0 | BJ2: =COUNTIF($Q$4:$Q17,BJ$1) -> 2 | BK2: =COUNTIF($Q$4:$Q17,BK$1) -> 0 | BN2: 1206 | BO2: =BN2-BN3 -> 149
A3: 1196 | B3: 8 | C3: 12 | D3: 15 | E3: 29 | F3: 40 | G3: 45 | P3: =S17-S3 -> (9) | Q3: =DATE(2024,6,8) -> 2024-06-08 | R3: 1202 | S3: =R3-R4 -> 156 | T3: =S3*7 -> 1092 | U3: =T3/30 -> 36 | V3: … | W3: … | X3: … | Y3: … | Z3: … | AA3: … | AC3: … | AD3: … | AE3: … | AF3: … | AG3: … | AH3: =SUM(AH4:AH17) -> 37,489,428,905 | AI3: =TEXT(DATE(2022,12,17) + (P3+S3)*7, "yyyy-mm-dd") &" (예상)" -> 2025-10-11 (예상) | AJ3: =ROUNDUP(AVERAGE(H73:H152),0) -> 46 | AK3: =SUM(H73:H152)*1000 -> 3,619,000 | AL3: =AK3/S3 -> 23,199 | AM3: =AR3*5000+AQ3*50000+AP3*1200000 -> 620,000 | AN3: =SUM(I73:I152) -> 0 | AO3: =SUM(J73:J152) -> 0 | AP3: =SUM(K73:K152) -> 0 | AQ3: =SUM(L73:L152) -> 4 | AR3: =SUM(M73:M152) -> 84 | BN3: 1057 | BO3: =BN3-BN4 -> 11
A4: 1195 | B4: 3 | C4: 15 | D4: 27 | E4: 33 | F4: 34 | G4: 36 | Q4: =INT(S4/10)*10 -> 20 | R4: 1046 | S4: =R4-R5 -> 24 | T4: =S4*7 -> 168 | U4: =T4/30 -> 6 | V4: 7 | W4: 16 | X4: 25 | Y4: 29 | Z4: 35 | AA4: 36 | AB4: =H153 -> 173 | AC4: 1 | AD4: 0 | AE4: 0 | AF4: 3 | AG4: 8 | AH4: =AF4*50000+AG4*5000+2011415719 -> 2,011,605,719 | AI4: =TEXT(DATE(2022,12,17), "yyyy-mm-dd") -> 2022-12-17 | AJ4: =ROUNDUP(AVERAGE(H153:H176),0) -> 53 | AK4: =SUM(H153:H176)*1000 -> 1,258,000 | AL4: 52,417 | AM4: =AR4*5000+AQ4*50000+AP4*1200000 -> 495,000 | AN4: =SUM(I153:I176) -> 1 | AO4: =SUM(J153:J176) -> 0 | AP4: =SUM(K153:K176) -> 0 | AQ4: =SUM(L153:L176) -> 6 | AR4: =SUM(M153:M176) -> 39 | BN4: 1046 | BO4: 24
A5: =A6+1 -> 1194 | B5: 3 | C5: 13 | D5: 15 | E5: 24 | F5: 33 | G5: 37 | Q5: =INT(S5/10)*10 -> 10 | R5: 1022 | S5: =R5-R6 -> 18 | T5: 126 | U5: 4 | V5: 5 | W5: 6 | X5: 11 | Y5: 29 | Z5: 42 | AA5: 45 | AB5: =H177 -> 205 | AC5: 1 | AD5: 0 | AE5: 1 | AF5: 6 | AG5: 11 | AH5: =AF5*50000+AG5*5000+4866468075 -> 4,866,823,075 | AI5: =TEXT(DATE(2022,7,2), "yyyy-mm-dd") -> 2022-07-02 | AJ5: =ROUNDUP(AVERAGE(H177:H194),0) -> 65 | AK5: =SUM(H177:H194)*1000 -> 1,167,000 | AL5: 64,833 | AM5: 1,665,000 | AN5: =SUM(I177:I194) -> 1 | AO5: =SUM(J177:J194) -> 0 | AP5: =SUM(K177:K194) -> 1 | AQ5: =SUM(L177:L194) -> 6 | AR5: =SUM(M177:M194) -> 33 | BN5: 1022 | BO5: 122
A6: 1193 | B6: 6 | C6: 9 | D6: 16 | E6: 19 | F6: 24 | G6: 28 | Q6: 100 | R6: 1004 | S6: 104 | T6: 728 | U6: 24 | V6: 7 | W6: 15 | X6: 30 | Y6: 37 | Z6: 39 | AA6: 44 | AB6: =H195 -> 303 | AC6: 1 | AD6: 0 | AE6: 2 | AF6: 1 | AG6: 16 | AH6: =AF6*50000+AG6*5000+2576251913+1541743 -> 2,577,923,656 | AI6: =TEXT(DATE(2022,2,26), "yyyy-mm-dd") -> 2022-02-26 | AJ6: =ROUNDUP(AVERAGE(H195:H298),0) -> 60 | AK6: =SUM(H195:H298)*1000 -> 6,204,000 | AL6: 59,654 | AM6: 4,150,000 | AN6: =SUM(I195:I298) -> 1 | AO6: =SUM(J195:J298) -> 0 | AP6: =SUM(K195:K298) -> 2 | AQ6: =SUM(L195:L298) -> 17 | AR6: =SUM(M195:M298) -> 180 | BN6: 900 | BO6: 59
A7: 1192 | B7: 10 | C7: 16 | D7: 23 | E7: 36 | F7: 39 | G7: 40 | Q7: 80 | R7: 900 | S7: 84 | T7: 588 | U7: 20 | V7: 7 | W7: 13 | X7: 16 | Y7: 18 | Z7: 35 | AA7: 38 | AB7: =H299 -> 346 | AC7: 1 | AD7: 0 | AE7: 0 | AF7: 4 | AG7: 22 | AH7: =AF7*50000+AG7*5000+3349851375 -> 3,350,161,375 | AI7: =TEXT(DATE(2020,2,29), "yyyy-mm-dd") -> 2020-02-29 | AJ7: =ROUNDUP(AVERAGE(H299:H382),0) -> 57 | AK7: =SUM(H299:H382)*1000 -> 4,733,000 | AL7: 56,345 | AM7: 1,910,000 | AN7: =SUM(I299:I382) -> 1 | AO7: =SUM(J299:J382) -> 0 | AP7: =SUM(K299:K382) -> 0 | AQ7: =SUM(L299:L382) -> 25 | AR7: =SUM(M299:M382) -> 132 | BN7: 841 | BO7: 25
A8: 1191 | B8: 1 | C8: 4 | D8: 11 | E8: 12 | F8: 20 | G8: 41 | Q8: 120 | R8: 816 | S8: 120 | T8: =S8*7 -> 840 | U8: =T8/30 -> 28 | V8: 12 | W8: 18 | X8: 19 | Y8: 29 | Z8: 31 | AA8: 39 | AB8: =H383 -> 36 | AC8: 1 | AD8: 0 | AE8: 0 | AF8: 4 | AG8: 22 | AH8: =AF8*50000+AG8*5000+2128107938 -> 2,128,417,938 | AI8: =TEXT(DATE(2017,7,21), "yyyy-mm-dd") -> 2017-07-21 | AJ8: =ROUNDUP(AVERAGE(H383:H502),0) -> 57 | AK8: =SUM(H383:H502)*1000 -> 6,760,000 | AL8: 56,333 | AM8: 4,365,000 | AN8: =SUM(I383:I502) -> 1 | AO8: =SUM(J383:J502) -> 0 | AP8: =SUM(K383:K502) -> 2 | AQ8: =SUM(L383:L502) -> 21 | AR8: =SUM(M383:M502) -> 183 | BN8: 816 | BO8: 120
A9: 1190 | B9: 7 | C9: 9 | D9: 19 | E9: 23 | F9: 26 | G9: 45 | Q9: 120 | R9: 696 | S9: 122 | T9: 854 | U9: 28 | V9: 1 | W9: 7 | X9: 16 | Y9: 18 | Z9: 34 | AA9: 38 | AB9: =H503 -> 101 | AC9: 1 | AD9: 0 | AE9: 0 | AF9: 2 | AG9: 14 | AH9: =AF9*50000+AG9*5000+1632054413 -> 1,632,224,413 | AI9: =TEXT(DATE(2016,4,2), "yyyy-mm-dd") -> 2016-04-02 | AJ9: =ROUNDUP(AVERAGE(H503:H624),0) -> 64 | AK9: =SUM(H503:H624)*1000 -> 7,748,000 | AL9: 63,508 | AM9: 2,345,000 | AN9: =SUM(I503:I624) -> 1 | AO9: =SUM(J503:J624) -> 0 | AP9: =SUM(K503:K624) -> 0 | AQ9: =SUM(L503:L624) -> 24 | AR9: =SUM(M503:M624) -> 229 | BN9: 696 | BO9: 103
A10: 1189 | B10: 9 | C10: 19 | D10: 29 | E10: 35 | F10: 37 | G10: 38 | Q10: 50 | R10: 574 | S10: 50 | T10: 350 | U10: 12 | V10: 14 | W10: 15 | X10: 16 | Y10: 19 | Z10: 25 | AA10: 43 | AB10: =H625 -> 89 | AC10: 1 | AD10: 0 | AE10: 0 | AF10: 0 | AG10: 17 | AH10: =AF10*50000+AG10*5000+6965184938 -> 6,965,269,938 | AI10: =TEXT(DATE(2013,11,30), "yyyy-mm-dd") -> 2013-11-30 | AJ10: =ROUNDUP(AVERAGE(H625:H674),0) -> 60 | AK10: =SUM(H625:H674)*1000 -> 3,000,000 | AL10: 60,000 | AM10: 795,000 | AN10: =SUM(I625:I674) -> 1 | AO10: =SUM(J625:J674) -> 0 | AP10: =SUM(K625:K674) -> 0 | AQ10: =SUM(L625:L674) -> 8 | AR10: =SUM(M625:M674) -> 79 | BN10: 593 | BO10: 19
A11: 1188 | B11: 3 | C11: 4 | D11: 12 | E11: 19 | F11: 22 | G11: 27 | Q11: 0 | R11: 524 | S11: 1 | T11: 0 | U11: 0 | V11: 10 | W11: 11 | X11: 29 | Y11: 38 | Z11: 41 | AA11: 45 | AB11: =H675 -> 178 | AC11: 1 | AD11: 0 | AE11: 0 | AF11: 4 | AG11: 12 | AH11: =AF11*50000+AG11*5000+3491695594 -> 3,491,955,594 | AI11: =TEXT(DATE(2012,12,15), "yyyy-mm-dd") -> 2012-12-15 | AJ11: =ROUNDUP(AVERAGE(H675),0) -> 178 | AK11: =SUM(H675)*1000 -> 178,000 | AL11: 178,000 | AM11: 260,000 | AN11: =SUM(I675:I675) -> 1 | AO11: =SUM(J675:J675) -> 0 | AP11: =SUM(K675:K675) -> 0 | AQ11: =SUM(L675:L675) -> 4 | AR11: =SUM(M675:M675) -> 12 | BN11: 574 | BO11: 148
A12: 1187 | B12: 5 | C12: 13 | D12: 26 | E12: 29 | F12: 37 | G12: 40 | Q12: 60 | R12: 523 | S12: 62 | T12: 434 | U12: 14 | V12: 1 | W12: 4 | X12: 37 | Y12: 38 | Z12: 40 | AA12: 45 | AB12: 187 | AC12: 1 | AD12: 0 | AE12: 0 | AF12: 1 | AG12: 6 | AH12: =AF12*50000+AG12*5000+1780355840 -> 1,780,435,840 | AI12: =TEXT(DATE(2012,12,8), "yyyy-mm-dd") -> 2012-12-08 | AJ12: =ROUNDUP(AVERAGE(H676:H737),0) -> 64 | AK12: =SUM(H676:H737)*1000 -> 3,913,000 | AL12: =AK12/S12 -> 63,113 | AM12: 3,765,000 | AN12: =SUM(I676:I737) -> 1 | AO12: =SUM(J676:J737) -> 0 | AP12: =SUM(K676:K737) -> 2 | AQ12: =SUM(L676:L737) -> 16 | AR12: =SUM(M676:M737) -> 113 | BN12: 426 | BO12: 70
A13: 1186 | B13: 2 | C13: 8 | D13: 13 | E13: 16 | F13: 23 | G13: 28 | H13: 411 | Q13: 100 | R13: 461 | S13: 105 | T13: 735 | U13: 25 | V13: 11 | W13: 18 | X13: 26 | Y13: 31 | Z13: 37 | AA13: 40 | AB13: =H738 -> 239 | AC13: 1 | AD13: 0 | AE13: 1 | AF13: 1 | AG13: 10 | AH13: =AF13*50000+AG13*5000+1134931+1948674875 -> 1,949,909,806 | AI13: =TEXT(DATE(2011,10,1), "yyyy-mm-dd") -> 2011-10-01 | AJ13: =ROUNDUP(AVERAGE(H738:H842),0) -> 53 | AK13: =SUM(H738:H842)*1000 -> 5,559,000 | AL13: 52,943 | AM13: 2,650,000 | AN13: =SUM(I738:I842) -> 1 | AO13: =SUM(J738:J842) -> 0 | AP13: =SUM(K738:K842) -> 1 | AQ13: =SUM(L738:L842) -> 15 | AR13: =SUM(M738:M842) -> 140 | BN13: 356 | BO13: 32
A14: 1185 | B14: 6 | C14: 17 | D14: 22 | E14: 28 | F14: 29 | G14: 32 | H14: 0 | I14: 0 | J14: 0 | K14: 0 | L14: 0 | M14: 0 | Q14: 30 | R14: 356 | S14: 32 | T14: 224 | U14: 7 | V14: 2 | W14: 8 | X14: 14 | Y14: 25 | Z14: 29 | AA14: 45 | AB14: =H843 -> 103 | AC14: 1 | AD14: 0 | AE14: 1 | AF14: 3 | AG14: 18 | AH14: =AF14*50000+AG14*5000+1157185267 -> 1,157,425,267 | AI14: =TEXT(DATE(2009,9,26), "yyyy-mm-dd") -> 2009-09-26 | AJ14: =ROUNDUP(AVERAGE(H843:H874),0) -> 68 | AK14: =SUM(H843:H874)*1000 -> 2,148,000 | AL14: 67,125 | AM14: 3,445,000 | AN14: =SUM(I843:I874) -> 1 | AO14: =SUM(J843:J874) -> 0 | AP14: =SUM(K843:K874) -> 2 | AQ14: =SUM(L843:L874) -> 13 | AR14: =SUM(M843:M874) -> 79 | BN14: 324 | BO14: 21
A15: 1184 | B15: 14 | C15: 16 | D15: 23 | E15: 25 | F15: 31 | G15: 37 | H15: 0 | I15: 0 | J15: 0 | K15: 0 | L15: 0 | M15: 0 | Q15: 30 | R15: 324 | S15: 35 | T15: 245 | U15: 8 | V15: 2 | W15: 4 | X15: 21 | Y15: 25 | Z15: 33 | AA15: 36 | AB15: =H875 -> 77 | AC15: 1 | AD15: 0 | AE15: 0 | AF15: 4 | AG15: 17 | AH15: =AF15*50000+AG15*5000+1865130350 -> 1,865,415,350 | AI15: =TEXT(DATE(2009,2,14), "yyyy-mm-dd") -> 2009-02-14 | AJ15: =ROUNDUP(AVERAGE(H875:H909),0) -> 54 | AK15: =SUM(H875:H909)*1000 -> 1,878,000 | AL15: 53,657 | AM15: 680,000 | AN15: =SUM(I875:I909) -> 1 | AO15: =SUM(J875:J909) -> 0 | AP15: =SUM(K875:K909) -> 0 | AQ15: =SUM(L875:L909) -> 7 | AR15: =SUM(M875:M909) -> 66 | BN15: 303 | BO15: 58
A16: 1183 | B16: 4 | C16: 15 | D16: 17 | E16: 23 | F16: 27 | G16: 36 | H16: 42 | I16: 0 | J16: 0 | K16: 0 | L16: 0 | M16: 0 | Q16: 140 | R16: 289 | S16: 142 | T16: 994 | U16: 33 | V16: 3 | W16: 14 | X16: 33 | Y16: 37 | Z16: 38 | AA16: 42 | AB16: =H910 -> 184 | AC16: 1 | AD16: 0 | AE16: 0 | AF16: 4 | AG16: 17 | AH16: =AG16*5000+AF16*50000+AE16*1501748 +AC16*2011415719 -> 2,011,700,719 | AI16: =TEXT(DATE(2008,6,14), "yyyy-mm-dd") -> 2008-06-14 | AJ16: =ROUNDUP(AVERAGE(H910:H1051),0) -> 60 | AK16: =SUM(H910:H1051)*1000 -> 8,510,000 | AL16: 59,930 | AM16: 4,295,000 | AN16: =SUM(I910:I1051) -> 1 | AO16: =SUM(J910:J1051) -> 0 | AP16: =SUM(K910:K1051) -> 2 | AQ16: =SUM(L910:L1051) -> 17 | AR16: =SUM(M910:M1051) -> 209 | BN16: 245 | BO16: 98
A17: 1182 | B17: 1 | C17: 13 | D17: 21 | E17: 25 | F17: 28 | G17: 31 | H17: 125 | I17: 0 | J17: 0 | K17: 0 | L17: 0 | M17: 1 | Q17: 140 | R17: 147 | S17: =R17 -> 147 | T17: 1,029 | U17: 34 | V17: 4 | W17: 6 | X17: 13 | Y17: 21 | Z17: 40 | AA17: 42 | AB17: =H1052 -> 167 | AC17: 1 | AD17: 0 | AE17: 0 | AF17: 2 | AG17: 4 | AH17: =AF17*50000+AG17*5000+1700040215 -> 1,700,160,215 | AI17: =TEXT(DATE(2005,9,24), "yyyy-mm-dd") -> 2005-09-24 | AJ17: =ROUNDUP(AVERAGE(H1052:H1198),0) -> 60 | AK17: =SUM(H1052:H1198)*1000 -> 7,616,000 | AL17: 51,810 | AM17: 4,130,000 | AN17: =SUM(I1052:I1198) -> 1 | AO17: =SUM(J1052:J1198) -> 0 | AP17: =SUM(K1052:K1198) -> 1 | AQ17: =SUM(L1052:L1198) -> 36 | AR17: =SUM(M1052:M1198) -> 226 | BN17: 147 | BO17: 8
A18: 1181 | B18: 8 | C18: 10 | D18: 14 | E18: 20 | F18: 33 | G18: 41 | H18: 58 | I18: 0 | J18: 0 | K18: 0 | L18: 0 | M18: 0 | R18: =COUNT(R4:R18) & "번" -> 14번 | S18: =AVERAGE(S4:S17) -> 74.7 | T18: =AVERAGE(T4:T17) -> 522.5 | U18: 17.4 | V18: =AVERAGE(V4:V17) -> 6.1 | W18: 11.1 | X18: 21.9 | Y18: 28.1 | Z18: 35.6 | AA18: 41.3 | AB18: =ROUNDUP(AVERAGE(AB4:AB17),0) -> 171 | AC18: =AVERAGE(AC4:AC17) -> 1.0 | AD18: 0.0 | AE18: 0.4 | AF18: 2.8 | AG18: 13.9 | AH18: 2,677,816,350 | AJ18: =ROUNDUP(AVERAGE(AJ4:AJ17),0) -> 69 | AK18: =ROUNDUP(AVERAGE(AK4:AK17),0) -> 4,333,715 | AL18: =AVERAGE(AL4:AL17) -> 67,119 | BN18: 139 | BO18: 68
A19: 1180 | B19: 6 | C19: 12 | D19: 18 | E19: 37 | F19: 40 | G19: 41 | H19: 0 | I19: 0 | J19: 0 | K19: 0 | L19: 0 | M19: 0 | BN19: 71 | BO19: 71
A20: 1179 | B20: 3 | C20: 16 | D20: 18 | E20: 24 | F20: 40 | G20: 44 | H20: 206 | I20: 0 | J20: 0 | K20: 0 | L20: 0 | M20: 12
A21: 1178 | B21: 5 | C21: 6 | D21: 11 | E21: 27 | F21: 43 | G21: 44 | H21: 221 | I21: 0 | J21: 0 | K21: 0 | L21: 1 | M21: 11 | R21: 최대값 | S21: =MAX($S$4:$S$17) -> 147 | U21: Bin | V21: Freq | W21: 확률 | X21: 누적
A22: 1177 | B22: 3 | C22: 7 | D22: 15 | E22: 16 | F22: 19 | G22: 43 | H22: 62 | I22: 0 | J22: 0 | K22: 0 | L22: 0 | M22: 4 | R22: 최소값 | S22: =MIN($S$4:$S$17) -> 1 | U22: 0 | V22: 0 | W22: =_xlfn.NORM.DIST(U22,$S$23,$S$24,0) -> 0.00 | X22: =_xlfn.NORM.DIST(U22,$S$23,$S$24,1) -> 0.06
A23: 1176 | B23: 7 | C23: 9 | D23: 11 | E23: 21 | F23: 30 | G23: 35 | H23: 109 | I23: 0 | J23: 0 | K23: 0 | L23: 0 | M23: 1 | R23: 평균 | S23: =AVERAGE($S$4:$S$17) -> 74.7 | U23: 1 | V23: 0 | W23: 0.00 | X23: 0.06 | BC23: 2024.06.22
A24: 1175 | B24: 3 | C24: 4 | D24: 6 | E24: 8 | F24: 32 | G24: 42 | H24: 0 | I24: 0 | J24: 0 | K24: 0 | L24: 0 | M24: 0 | R24: 표준편차 | S24: =_xlfn.STDEV.P($S$4:$S$17) -> 47.3 | U24: 2 | V24: 1 | W24: 0.00 | X24: 0.06 | BD24: 2024.08.31
A25: 1174 | B25: 8 | C25: 11 | D25: 14 | E25: 17 | F25: 36 | G25: 39 | H25: 17 | I25: 0 | J25: 0 | K25: 0 | L25: 0 | M25: 0 | R25: 왜도 | S25: =SKEW($S$4:$S17) -> 0.05 | U25: 3 | V25: 0 | W25: 0.00 | X25: 0.06 | BE25: 2024.11.09
A26: 1173 | B26: 1 | C26: 5 | D26: 18 | E26: 20 | F26: 30 | G26: 35 | H26: 60 | I26: 0 | J26: 0 | K26: 0 | L26: 0 | M26: 1 | R26: 첨도 | S26: =KURT($S$4:$S17) -> -1.49 | U26: 4 | V26: 0 | W26: 0.00 | X26: 0.07 | BF26: 2025.01.08
A27: 1172 | B27: 7 | C27: 9 | D27: 24 | E27: 40 | F27: 42 | G27: 44 | H27: 0 | I27: 0 | J27: 0 | K27: 0 | L27: 0 | M27: 0 | U27: 5 | V27: 0 | W27: 0.00 | X27: 0.07 | BG27: 2025.03.29
A28: 1171 | B28: 3 | C28: 6 | D28: 7 | E28: 11 | F28: 12 | G28: 17 | H28: 245 | I28: 0 | J28: 0 | K28: 0 | L28: 0 | M28: 0 | R28: 계급 | U28: 6 | V28: 0 | W28: 0.00 | X28: 0.07 | BH28: 2025.06.07
A29: 1170 | B29: 3 | C29: 13 | D29: 28 | E29: 34 | F29: 38 | G29: 42 | H29: 25 | I29: 0 | J29: 0 | K29: 0 | L29: 0 | M29: 4 | R29: 0 | U29: 7 | V29: 0 | W29: 0.00 | X29: 0.08 | BI29: 2025.08.16
A30: 1169 | B30: 5 | C30: 12 | D30: 24 | E30: 26 | F30: 39 | G30: 42 | H30: 97 | I30: 0 | J30: 0 | K30: 0 | L30: 0 | M30: 6 | R30: 1 | U30: 8 | V30: 0 | W30: 0.00 | X30: 0.08 | BJ30: 2025.10.25
A31: 1168 | B31: 9 | C31: 21 | D31: 24 | E31: 30 | F31: 33 | G31: 37 | H31: 0 | I31: 0 | J31: 0 | K31: 0 | L31: 0 | M31: 0 | R31: =R30+1 -> 2 | U31: 9 | V31: 0 | W31: 0.00 | X31: 0.08 | BK31: 2026.01.03
A32: 1167 | B32: 8 | C32: 23 | D32: 31 | E32: 35 | F32: 39 | G32: 40 | H32: 0 | I32: 0 | J32: 0 | K32: 0 | L32: 0 | M32: 0 | R32: =R31+1 -> 3 | U32: 10 | V32: 0 | W32: 0.00 | X32: 0.09
A33: 1166 | B33: 14 | C33: 23 | D33: 25 | E33: 27 | F33: 29 | G33: 42 | H33: 243 | I33: 0 | J33: 0 | K33: 0 | L33: 0 | M33: 3 | R33: 4 | U33: 11 | V33: 0 | W33: 0.00 | X33: 0.09
A34: 1165 | B34: 6 | C34: 7 | D34: 27 | E34: 29 | F34: 38 | G34: 45 | H34: 0 | I34: 0 | J34: 0 | K34: 0 | L34: 0 | M34: 0 | R34: 5 | U34: 12 | V34: 0 | W34: 0.00 | X34: 0.09
A35: 1164 | B35: 17 | C35: 18 | D35: 23 | E35: 25 | F35: 38 | G35: 39 | H35: 206 | I35: 0 | J35: 0 | K35: 0 | L35: 0 | M35: 3 | R35: 6 | U35: 13 | V35: 0 | W35: 0.00 | X35: 0.10
A36: 1163 | B36: 2 | C36: 13 | D36: 15 | E36: 16 | F36: 33 | G36: 43 | H36: 0 | I36: 0 | J36: 0 | K36: 0 | L36: 0 | M36: 0 | R36: 7 | U36: 14 | V36: 0 | W36: 0.00 | X36: 0.10
A37: 1162 | B37: 20 | C37: 21 | D37: 22 | E37: 25 | F37: 28 | G37: 29 | H37: 4 | I37: 0 | J37: 0 | K37: 0 | L37: 0 | M37: 0 | R37: 8 | U37: 15 | V37: 0 | W37: 0.00 | X37: 0.10
A38: 1161 | B38: 2 | C38: 12 | D38: 20 | E38: 24 | F38: 34 | G38: 42 | H38: 0 | I38: 0 | J38: 0 | K38: 0 | L38: 0 | M38: 0 | R38: 9 | U38: 16 | V38: 0 | W38: 0.00 | X38: 0.11
A39: 1160 | B39: 7 | C39: 13 | D39: 18 | E39: 36 | F39: 39 | G39: 45 | H39: 91 | I39: 0 | J39: 0 | K39: 0 | L39: 0 | M39: 5 | R39: 10 | U39: 17 | V39: 0 | W39: 0.00 | X39: 0.11
A40: 1159 | B40: 3 | C40: 9 | D40: 27 | E40: 28 | F40: 38 | G40: 39 | H40: 46 | I40: 0 | J40: 0 | K40: 0 | L40: 0 | M40: 3 | R40: 11 | U40: 18 | V40: 1 | W40: 0.00 | X40: 0.12
A41: 1158 | B41: 21 | C41: 25 | D41: 27 | E41: 32 | F41: 37 | G41: 38 | H41: 0 | I41: 0 | J41: 0 | K41: 0 | L41: 0 | M41: 0 | R41: 12 | U41: 19 | V41: 0 | W41: 0.00 | X41: 0.12
A42: 1157 | B42: 5 | C42: 7 | D42: 12 | E42: 20 | F42: 25 | G42: 26 | H42: 0 | I42: 0 | J42: 0 | K42: 0 | L42: 0 | M42: 0 | R42: 13 | U42: 20 | V42: 0 | W42: 0.00 | X42: 0.12
A43: 1156 | B43: 30 | C43: 31 | D43: 34 | E43: 39 | F43: 41 | G43: 45 | H43: 182 | I43: 0 | J43: 0 | K43: 0 | L43: 1 | M43: 11 | R43: 14 | U43: 21 | V43: 0 | W43: 0.00 | X43: 0.13
A44: 1155 | B44: 10 | C44: 16 | D44: 19 | E44: 27 | F44: 37 | G44: 38 | H44: 28 | I44: 0 | J44: 0 | K44: 0 | L44: 0 | M44: 2 | R44: 15 | U44: 22 | V44: 0 | W44: 0.00 | X44: 0.13
A45: 1154 | B45: 4 | C45: 8 | D45: 22 | E45: 26 | F45: 32 | G45: 38 | H45: 428 | I45: 0 | J45: 0 | K45: 0 | L45: 0 | M45: 12 | R45: 16 | U45: 23 | V45: 0 | W45: 0.00 | X45: 0.14
A46: 1153 | B46: 1 | C46: 9 | D46: 10 | E46: 13 | F46: 35 | G46: 44 | H46: 0 | I46: 0 | J46: 0 | K46: 0 | L46: 0 | M46: 0 | R46: 17 | U46: 24 | V46: 1 | W46: 0.00 | X46: 0.14
A47: 1152 | B47: 30 | C47: 31 | D47: 32 | E47: 35 | F47: 36 | G47: 37 | H47: 13 | I47: 0 | J47: 0 | K47: 0 | L47: 0 | M47: 0 | R47: 18 | U47: 25 | V47: 0 | W47: 0.00 | X47: 0.15
A48: 1151 | B48: 2 | C48: 3 | D48: 9 | E48: 15 | F48: 27 | G48: 29 | H48: 0 | I48: 0 | J48: 0 | K48: 0 | L48: 0 | M48: 0 | R48: 19 | U48: 26 | V48: 0 | W48: 0.00 | X48: 0.15
A49: 1150 | B49: 8 | C49: 9 | D49: 18 | E49: 35 | F49: 39 | G49: 45 | H49: 101 | I49: 0 | J49: 0 | K49: 0 | L49: 0 | M49: 6 | R49: 20 | U49: 27 | V49: 0 | W49: 0.01 | X49: 0.16
A50: 1149 | B50: 8 | C50: 15 | D50: 19 | E50: 21 | F50: 32 | G50: 36 | H50: 0 | I50: 0 | J50: 0 | K50: 0 | L50: 0 | M50: 0 | R50: 21 | U50: 28 | V50: 0 | W50: 0.01 | X50: 0.16
A51: 1148 | B51: 3 | C51: 6 | D51: 13 | E51: 15 | F51: 16 | G51: 22 | H51: 460 | I51: 0 | J51: 0 | K51: 0 | L51: 0 | M51: 22 | R51: 22 | U51: 29 | V51: 0 | W51: 0.01 | X51: 0.17
A52: 1147 | B52: 7 | C52: 11 | D52: 24 | E52: 26 | F52: 27 | G52: 37 | H52: 506 | I52: 0 | J52: 0 | K52: 0 | L52: 0 | M52: 11 | R52: 23 | U52: 30 | V52: 0 | W52: 0.01 | X52: 0.17
A53: 1146 | B53: 6 | C53: 11 | D53: 17 | E53: 19 | F53: 40 | G53: 43 | H53: 50 | I53: 0 | J53: 0 | K53: 0 | L53: 0 | M53: 0 | R53: 24 | U53: 31 | V53: 0 | W53: 0.01 | X53: 0.18
A54: 1145 | B54: 2 | C54: 11 | D54: 31 | E54: 33 | F54: 37 | G54: 44 | H54: 200 | I54: 0 | J54: 0 | K54: 0 | L54: 0 | M54: 1 | R54: 25 | U54: 32 | V54: 1 | W54: =_xlfn.NORM.DIST(U54,$S$23,$S$24,0) -> 0.01 | X54: =_xlfn.NORM.DIST(U54,$S$23,$S$24,1) -> 0.18
A55: 1144 | B55: 3 | C55: 4 | D55: 12 | E55: 15 | F55: 26 | G55: 34 | H55: 198 | I55: 0 | J55: 0 | K55: 0 | L55: 0 | M55: 3 | R55: 26 | U55: 33 | V55: 0 | W55: 0.01 | X55: 0.19
A56: 1143 | B56: 10 | C56: 16 | D56: 17 | E56: 27 | F56: 28 | G56: 36 | H56: 609 | I56: 0 | J56: 0 | K56: 0 | L56: 1 | M56: 12 | R56: 27 | U56: 34 | V56: 0 | W56: 0.01 | X56: 0.19
A57: 1142 | B57: 2 | C57: 8 | D57: 28 | E57: 30 | F57: 37 | G57: 41 | H57: 51 | I57: 0 | J57: 0 | K57: 0 | L57: 0 | M57: 5 | R57: 28 | U57: 35 | V57: 1 | W57: 0.01 | X57: 0.20
A58: 1141 | B58: 7 | C58: 11 | D58: 12 | E58: 21 | F58: 26 | G58: 35 | H58: 298 | I58: 0 | J58: 0 | K58: 0 | L58: 0 | M58: 5 | R58: 29 | U58: 36 | V58: 0 | W58: 0.01 | X58: 0.21
A59: 1140 | B59: 7 | C59: 10 | D59: 22 | E59: 29 | F59: 31 | G59: 38 | H59: 16 | I59: 0 | J59: 0 | K59: 0 | L59: 0 | M59: 0 | R59: 30 | U59: 37 | V59: 0 | W59: 0.01 | X59: 0.21
A60: 1139 | B60: 5 | C60: 12 | D60: 15 | E60: 30 | F60: 37 | G60: 40 | H60: 100 | I60: 0 | J60: 0 | K60: 0 | L60: 0 | M60: 2 | R60: 31 | U60: 38 | V60: 0 | W60: 0.01 | X60: 0.22
A61: 1138 | B61: 14 | C61: 16 | D61: 19 | E61: 20 | F61: 29 | G61: 34 | H61: 66 | I61: 0 | J61: 0 | K61: 0 | L61: 0 | M61: 0 | R61: 32 | U61: 39 | V61: 0 | W61: 0.01 | X61: 0.23
A62: 1137 | B62: 4 | C62: 9 | D62: 12 | E62: 15 | F62: 33 | G62: 45 | H62: 0 | I62: 0 | J62: 0 | K62: 0 | L62: 0 | M62: 0 | R62: 33 | U62: 40 | V62: 0 | W62: 0.01 | X62: 0.23
A63: 1136 | B63: 21 | C63: 33 | D63: 35 | E63: 38 | F63: 42 | G63: 44 | H63: 94 | I63: 0 | J63: 0 | K63: 0 | L63: 0 | M63: 5 | R63: 34 | U63: 41 | V63: 0 | W63: 0.01 | X63: 0.24
A64: 1135 | B64: 1 | C64: 6 | D64: 13 | E64: 19 | F64: 21 | G64: 33 | H64: 0 | I64: 0 | J64: 0 | K64: 0 | L64: 0 | M64: 0 | R64: 35 | U64: 42 | V64: 0 | W64: 0.01 | X64: 0.24
A65: 1134 | B65: 3 | C65: 7 | D65: 9 | E65: 13 | F65: 19 | G65: 24 | H65: 102 | I65: 0 | J65: 0 | K65: 0 | L65: 0 | M65: 1 | R65: 36 | U65: 43 | V65: 0 | W65: 0.01 | X65: 0.25
A66: 1133 | B66: 13 | C66: 14 | D66: 20 | E66: 28 | F66: 29 | G66: 34 | H66: 137 | I66: 0 | J66: 0 | K66: 0 | L66: 0 | M66: 6 | R66: 37 | U66: 44 | V66: 0 | W66: 0.01 | X66: 0.26
A67: 1132 | B67: 6 | C67: 7 | D67: 19 | E67: 28 | F67: 34 | G67: 41 | H67: 243 | I67: 0 | J67: 0 | K67: 0 | L67: 0 | M67: 5 | R67: 38 | U67: 45 | V67: 0 | W67: 0.01 | X67: 0.26
A68: 1131 | B68: 1 | C68: 2 | D68: 6 | E68: 14 | F68: 27 | G68: 38 | H68: 0 | I68: 0 | J68: 0 | K68: 0 | L68: 0 | M68: 0 | R68: 39 | U68: 46 | V68: 0 | W68: 0.01 | X68: 0.27
A69: =A70+1 -> 1130 | B69: 15 | C69: 19 | D69: 21 | E69: 25 | F69: 27 | G69: 28 | H69: 25 | I69: 0 | J69: 0 | K69: 0 | L69: 0 | M69: 0 | R69: 40 | U69: 47 | V69: 0 | W69: 0.01 | X69: 0.28
A70: 1129 | B70: 5 | C70: 10 | D70: 11 | E70: 17 | F70: 28 | G70: 34 | H70: 86 | I70: 0 | J70: 0 | K70: 0 | L70: 0 | M70: 0 | R70: 41 | U70: 48 | V70: 0 | W70: 0.01 | X70: 0.29
A71: 1128 | B71: 1 | C71: 5 | D71: 8 | E71: 16 | F71: 28 | G71: 33 | H71: 20 | I71: 0 | J71: 0 | K71: 0 | L71: 0 | M71: 0 | R71: 42 | U71: 49 | V71: 0 | W71: 0.01 | X71: 0.29
A72: 1127 | B72: 10 | C72: 15 | D72: 24 | E72: 30 | F72: 31 | G72: 37 | H72: 137 | I72: 0 | J72: 0 | K72: 0 | L72: 0 | M72: 2 | R72: 43 | U72: 50 | V72: 1 | W72: 0.01 | X72: 0.30
A73: 1126 | B73: 4 | C73: 5 | D73: 9 | E73: 11 | F73: 37 | G73: 40 | H73: 28 | I73: 0 | J73: 0 | K73: 0 | L73: 0 | M73: 0 | R73: 44 | U73: 51 | V73: 0 | W73: 0.01 | X73: 0.31
A74: 1125 | B74: 6 | C74: 14 | D74: 25 | E74: 33 | F74: 40 | G74: 44 | H74: 30 | I74: 0 | J74: 0 | K74: 0 | L74: 0 | M74: 0 | R74: 45 | U74: 52 | V74: 0 | W74: 0.01 | X74: 0.32
A75: 1124 | B75: 3 | C75: 8 | D75: 17 | E75: 30 | F75: 33 | G75: 34 | H75: 111 | I75: 0 | J75: 0 | K75: 0 | L75: 0 | M75: 2 | R75: 46 | U75: 53 | V75: 0 | W75: 0.01 | X75: 0.32
A76: 1123 | B76: 13 | C76: 19 | D76: 21 | E76: 24 | F76: 34 | G76: 35 | H76: 38 | I76: 0 | J76: 0 | K76: 0 | L76: 0 | M76: 0 | R76: 47 | U76: 54 | V76: 0 | W76: 0.01 | X76: 0.33
A77: 1122 | B77: 3 | C77: 6 | D77: 21 | E77: 30 | F77: 34 | G77: 35 | H77: 22 | I77: 0 | J77: 0 | K77: 0 | L77: 0 | M77: 1 | R77: 48 | U77: 55 | V77: 0 | W77: 0.01 | X77: 0.34
A78: 1121 | B78: 6 | C78: 24 | D78: 31 | E78: 32 | F78: 38 | G78: 44 | H78: 63 | I78: 0 | J78: 0 | K78: 0 | L78: 0 | M78: 2 | R78: 49 | U78: 56 | V78: 0 | W78: 0.01 | X78: 0.35
A79: 1120 | B79: 2 | C79: 19 | D79: 26 | E79: 31 | F79: 38 | G79: 41 | H79: 39 | I79: 0 | J79: 0 | K79: 0 | L79: 0 | M79: 0 | R79: 50 | U79: 57 | V79: 0 | W79: 0.01 | X79: 0.35
A80: 1119 | B80: 1 | C80: 9 | D80: 12 | E80: 13 | F80: 20 | G80: 45 | H80: 11 | I80: 0 | J80: 0 | K80: 0 | L80: 0 | M80: 0 | R80: 51 | U80: 58 | V80: 0 | W80: 0.01 | X80: 0.36
A81: 1118 | B81: 11 | C81: 13 | D81: 14 | E81: 15 | F81: 16 | G81: 45 | H81: 6 | I81: 0 | J81: 0 | K81: 0 | L81: 0 | M81: 0 | R81: 52 | U81: 59 | V81: 0 | W81: 0.01 | X81: 0.37
A82: 1117 | B82: 3 | C82: 4 | D82: 9 | E82: 30 | F82: 33 | G82: 36 | H82: 8 | I82: 0 | J82: 0 | K82: 0 | L82: 0 | M82: 2 | R82: 53 | U82: 60 | V82: 0 | W82: 0.01 | X82: 0.38
A83: 1116 | B83: 15 | C83: 16 | D83: 17 | E83: 25 | F83: 30 | G83: 31 | H83: 0 | I83: 0 | J83: 0 | K83: 0 | L83: 0 | M83: 0 | R83: 54 | U83: 61 | V83: 0 | W83: 0.01 | X83: 0.39
A84: 1115 | B84: 7 | C84: 12 | D84: 23 | E84: 32 | F84: 34 | G84: 36 | H84: 17 | I84: 0 | J84: 0 | K84: 0 | L84: 0 | M84: 0 | R84: 55 | U84: 62 | V84: 1 | W84: 0.01 | X84: 0.39
A85: 1114 | B85: 10 | C85: 16 | D85: 19 | E85: 32 | F85: 33 | G85: 38 | H85: 53 | I85: 0 | J85: 0 | K85: 0 | L85: 0 | M85: 3 | R85: 56 | U85: 63 | V85: 0 | W85: 0.01 | X85: 0.40
A86: 1113 | B86: 11 | C86: 13 | D86: 20 | E86: 21 | F86: 32 | G86: 44 | H86: 6 | I86: 0 | J86: 0 | K86: 0 | L86: 0 | M86: 0 | R86: 57 | U86: 64 | V86: 0 | W86: =_xlfn.NORM.DIST(U86,$S$23,$S$24,0) -> 0.01 | X86: =_xlfn.NORM.DIST(U86,$S$23,$S$24,1) -> 0.41
A87: 1112 | B87: 16 | C87: 20 | D87: 26 | E87: 36 | F87: 42 | G87: 44 | H87: 3 | I87: 0 | J87: 0 | K87: 0 | L87: 0 | M87: 1 | R87: 58 | U87: 65 | V87: 0 | W87: 0.01 | X87: 0.42
A88: 1111 | B88: 3 | C88: 13 | D88: 30 | E88: 33 | F88: 43 | G88: 45 | H88: 72 | I88: 0 | J88: 0 | K88: 0 | L88: 0 | M88: 3 | R88: 59 | U88: 66 | V88: 0 | W88: 0.01 | X88: 0.43
A89: 1110 | B89: 3 | C89: 7 | D89: 11 | E89: 20 | F89: 22 | G89: 41 | H89: 41 | I89: 0 | J89: 0 | K89: 0 | L89: 0 | M89: 2 | R89: 60 | U89: 67 | V89: 0 | W89: 0.01 | X89: 0.44
A90: 1109 | B90: 10 | C90: 12 | D90: 13 | E90: 19 | F90: 33 | G90: 40 | H90: 23 | I90: 0 | J90: 0 | K90: 0 | L90: 0 | M90: 0 | R90: 61 | U90: 68 | V90: 0 | W90: 0.01 | X90: 0.44
A91: 1108 | B91: 7 | C91: 19 | D91: 26 | E91: 37 | F91: 39 | G91: 44 | H91: 10 | I91: 0 | J91: 0 | K91: 0 | L91: 0 | M91: 0 | R91: 62 | U91: 69 | V91: 0 | W91: 0.01 | X91: 0.45
A92: 1107 | B92: 6 | C92: 14 | D92: 30 | E92: 31 | F92: 40 | G92: 41 | H92: 172 | I92: 0 | J92: 0 | K92: 0 | L92: 1 | M92: 5 | R92: 63 | U92: 70 | V92: 0 | W92: 0.01 | X92: 0.46
A93: 1106 | B93: 1 | C93: 3 | D93: 4 | E93: 29 | F93: 42 | G93: 45 | H93: 80 | I93: 0 | J93: 0 | K93: 0 | L93: 0 | M93: 0 | R93: 64 | U93: 71 | V93: 0 | W93: 0.01 | X93: 0.47
A94: 1105 | B94: 6 | C94: 16 | D94: 34 | E94: 37 | F94: 39 | G94: 40 | H94: 31 | I94: 0 | J94: 0 | K94: 0 | L94: 0 | M94: 1 | R94: 65 | U94: 72 | V94: 0 | W94: 0.01 | X94: 0.48
A95: 1104 | B95: 1 | C95: 7 | D95: 21 | E95: 30 | F95: 35 | G95: 38 | H95: 78 | I95: 0 | J95: 0 | K95: 0 | L95: 0 | M95: 1 | R95: 66 | U95: 73 | V95: 0 | W95: 0.01 | X95: 0.49
A96: 1103 | B96: 10 | C96: 12 | D96: 29 | E96: 31 | F96: 40 | G96: 44 | H96: 69 | I96: 0 | J96: 0 | K96: 0 | L96: 1 | M96: 1 | R96: =R95+1 -> 67 | U96: 74 | V96: 0 | W96: 0.01 | X96: 0.49
A97: 1102 | B97: 13 | C97: 14 | D97: 22 | E97: 26 | F97: 37 | G97: 38 | H97: 10 | I97: 0 | J97: 0 | K97: 0 | L97: 0 | M97: 0 | R97: 68 | U97: 75 | V97: 0 | W97: 0.01 | X97: 0.50
A98: 1101 | B98: 6 | C98: 7 | D98: 13 | E98: 28 | F98: 36 | G98: 42 | H98: 74 | I98: 0 | J98: 0 | K98: 0 | L98: 0 | M98: 1 | R98: 69 | U98: 76 | V98: 0 | W98: 0.01 | X98: 0.51
A99: 1100 | B99: 17 | C99: 26 | D99: 29 | E99: 30 | F99: 31 | G99: 43 | H99: 7 | I99: 0 | J99: 0 | K99: 0 | L99: 0 | M99: 0 | R99: 70 | U99: 77 | V99: 0 | W99: 0.01 | X99: 0.52
A100: 1099 | B100: 3 | C100: 20 | D100: 28 | E100: 38 | F100: 40 | G100: 43 | H100: 52 | I100: 0 | J100: 0 | K100: 0 | L100: 0 | M100: 3 | R100: 71 | U100: 78 | V100: 0 | W100: 0.01 | X100: 0.53
A101: 1098 | B101: 12 | C101: 16 | D101: 21 | E101: 24 | F101: 41 | G101: 43 | H101: 17 | I101: 0 | J101: 0 | K101: 0 | L101: 0 | M101: 1 | R101: 72 | U101: 79 | V101: 0 | W101: 0.01 | X101: 0.54
A102: 1097 | B102: 14 | C102: 33 | D102: 34 | E102: 35 | F102: 37 | G102: 40 | H102: 0 | I102: 0 | J102: 0 | K102: 0 | L102: 0 | M102: 0 | R102: 73 | U102: 80 | V102: 0 | W102: 0.01 | X102: 0.54
A103: 1096 | B103: 1 | C103: 12 | D103: 16 | E103: 19 | F103: 23 | G103: 43 | H103: 35 | I103: 0 | J103: 0 | K103: 0 | L103: 0 | M103: 0 | R103: 74 | U103: 81 | V103: 0 | W103: 0.01 | X103: 0.55
A104: 1095 | B104: 8 | C104: 14 | D104: 28 | E104: 29 | F104: 34 | G104: 40 | H104: 160 | I104: 0 | J104: 0 | K104: 0 | L104: 0 | M104: 3 | R104: 75 | U104: 82 | V104: 0 | W104: 0.01 | X104: 0.56
A105: 1094 | B105: 6 | C105: 7 | D105: 15 | E105: 22 | F105: 26 | G105: 40 | H105: 34 | I105: 0 | J105: 0 | K105: 0 | L105: 0 | M105: 6 | R105: 76 | U105: 83 | V105: 0 | W105: 0.01 | X105: 0.57
A106: 1093 | B106: 10 | C106: 17 | D106: 22 | E106: 30 | F106: 35 | G106: 43 | H106: 119 | I106: 0 | J106: 0 | K106: 0 | L106: 0 | M106: 3 | R106: 77 | U106: 84 | V106: 1 | W106: 0.01 | X106: 0.58
A107: 1092 | B107: 7 | C107: 18 | D107: 19 | E107: 26 | F107: 33 | G107: 45 | H107: 0 | I107: 0 | J107: 0 | K107: 0 | L107: 0 | M107: 0 | R107: 78 | U107: 85 | V107: 0 | W107: 0.01 | X107: 0.59
A108: 1091 | B108: 6 | C108: 20 | D108: 23 | E108: 24 | F108: 28 | G108: 30 | H108: 236 | I108: 0 | J108: 0 | K108: 0 | L108: 0 | M108: 0 | R108: 79 | U108: 86 | V108: 0 | W108: 0.01 | X108: 0.59
A109: 1090 | B109: 12 | C109: 19 | D109: 21 | E109: 29 | F109: 40 | G109: 45 | H109: 60 | I109: 0 | J109: 0 | K109: 0 | L109: 0 | M109: 6 | R109: 80 | U109: 87 | V109: 0 | W109: 0.01 | X109: 0.60
A110: 1089 | B110: 4 | C110: 18 | D110: 31 | E110: 37 | F110: 42 | G110: 43 | H110: 0 | I110: 0 | J110: 0 | K110: 0 | L110: 0 | M110: 0 | R110: 81 | U110: 88 | V110: 0 | W110: 0.01 | X110: 0.61
A111: 1088 | B111: 11 | C111: 21 | D111: 22 | E111: 30 | F111: 39 | G111: 44 | H111: 103 | I111: 0 | J111: 0 | K111: 0 | L111: 0 | M111: 6 | R111: 82 | U111: 89 | V111: 0 | W111: 0.01 | X111: 0.62
A112: 1087 | B112: 13 | C112: 14 | D112: 18 | E112: 21 | F112: 34 | G112: 44 | H112: 119 | I112: 0 | J112: 0 | K112: 0 | L112: 1 | M112: 2 | R112: 83 | U112: 90 | V112: 0 | W112: 0.01 | X112: 0.63
A113: 1086 | B113: 11 | C113: 16 | D113: 25 | E113: 27 | F113: 35 | G113: 36 | H113: 22 | I113: 0 | J113: 0 | K113: 0 | L113: 0 | M113: 0 | R113: 84 | U113: 91 | V113: 0 | W113: 0.01 | X113: 0.63
A114: 1085 | B114: 4 | C114: 7 | D114: 17 | E114: 18 | F114: 38 | G114: 44 | H114: 72 | I114: 0 | J114: 0 | K114: 0 | L114: 0 | M114: 4 | R114: 85 | U114: 92 | V114: 0 | W114: 0.01 | X114: 0.64
A115: 1084 | B115: 8 | C115: 12 | D115: 13 | E115: 29 | F115: 33 | G115: 42 | H115: 52 | I115: 0 | J115: 0 | K115: 0 | L115: 0 | M115: 1 | R115: 86 | U115: 93 | V115: 0 | W115: 0.01 | X115: 0.65
A116: 1083 | B116: 3 | C116: 7 | D116: 14 | E116: 15 | F116: 22 | G116: 38 | H116: 32 | I116: 0 | J116: 0 | K116: 0 | L116: 0 | M116: 0 | R116: 87 | U116: 94 | V116: 0 | W116: 0.01 | X116: 0.66
A117: 1082 | B117: 21 | C117: 26 | D117: 27 | E117: 32 | F117: 34 | G117: 42 | H117: 0 | I117: 0 | J117: 0 | K117: 0 | L117: 0 | M117: 0 | R117: 88 | U117: 95 | V117: 0 | W117: 0.01 | X117: 0.67
A118: 1081 | B118: 1 | C118: 9 | D118: 16 | E118: 23 | F118: 24 | G118: 38 | H118: 0 | I118: 0 | J118: 0 | K118: 0 | L118: 0 | M118: 0 | R118: 89 | U118: 96 | V118: 0 | W118: =_xlfn.NORM.DIST(U118,$S$23,$S$24,0) -> 0.01 | X118: =_xlfn.NORM.DIST(U118,$S$23,$S$24,1) -> 0.67
A119: 1080 | B119: 13 | C119: 16 | D119: 23 | E119: 31 | F119: 36 | G119: 44 | H119: 18 | I119: 0 | J119: 0 | K119: 0 | L119: 0 | M119: 0 | R119: 90 | U119: 97 | V119: 0 | W119: 0.01 | X119: 0.68
A120: 1079 | B120: 4 | C120: 8 | D120: 18 | E120: 24 | F120: 37 | G120: 45 | H120: 59 | I120: 0 | J120: 0 | K120: 0 | L120: 0 | M120: 1 | R120: 91 | U120: 98 | V120: 0 | W120: 0.01 | X120: 0.69
A121: 1078 | B121: 6 | C121: 10 | D121: 11 | E121: 14 | F121: 36 | G121: 38 | H121: 43 | I121: 0 | J121: 0 | K121: 0 | L121: 0 | M121: 0 | R121: 92 | U121: 99 | V121: 0 | W121: 0.01 | X121: 0.70
A122: 1077 | B122: 4 | C122: 8 | D122: 17 | E122: 30 | F122: 40 | G122: 43 | H122: 5 | I122: 0 | J122: 0 | K122: 0 | L122: 0 | M122: 0 | R122: 93 | U122: 100 | V122: 0 | W122: 0.01 | X122: 0.70
A123: 1076 | B123: 3 | C123: 7 | D123: 9 | E123: 33 | F123: 36 | G123: 37 | H123: 0 | I123: 0 | J123: 0 | K123: 0 | L123: 0 | M123: 0 | R123: 94 | U123: 101 | V123: 0 | W123: 0.01 | X123: 0.71
A124: 1075 | B124: 1 | C124: 23 | D124: 24 | E124: 35 | F124: 44 | G124: 45 | H124: 121 | I124: 0 | J124: 0 | K124: 0 | L124: 0 | M124: 0 | R124: 95 | U124: 102 | V124: 0 | W124: 0.01 | X124: 0.72
A125: 1074 | B125: 1 | C125: 6 | D125: 20 | E125: 27 | F125: 28 | G125: 41 | H125: 5 | I125: 0 | J125: 0 | K125: 0 | L125: 0 | M125: 0 | R125: 96 | U125: 103 | V125: 0 | W125: 0.01 | X125: 0.73
A126: 1073 | B126: 6 | C126: 18 | D126: 28 | E126: 30 | F126: 32 | G126: 38 | H126: 0 | I126: 0 | J126: 0 | K126: 0 | L126: 0 | M126: 0 | R126: 97 | U126: 104 | V126: 1 | W126: 0.01 | X126: 0.73
A127: 1072 | B127: 16 | C127: 18 | D127: 20 | E127: 23 | F127: 32 | G127: 43 | H127: 10 | I127: 0 | J127: 0 | K127: 0 | L127: 0 | M127: 0 | R127: 98 | U127: 105 | V127: 1 | W127: 0.01 | X127: 0.74
A128: 1071 | B128: 1 | C128: 2 | D128: 11 | E128: 21 | F128: 30 | G128: 35 | H128: 4 | I128: 0 | J128: 0 | K128: 0 | L128: 0 | M128: 0 | R128: 99 | U128: 106 | V128: 0 | W128: 0.01 | X128: 0.75
A129: 1070 | B129: 3 | C129: 6 | D129: 14 | E129: 22 | F129: 30 | G129: 41 | H129: 13 | I129: 0 | J129: 0 | K129: 0 | L129: 0 | M129: 0 | R129: 100 | U129: 107 | V129: 0 | W129: 0.01 | X129: 0.75
A130: 1069 | B130: 1 | C130: 10 | D130: 18 | E130: 22 | F130: 28 | G130: 31 | H130: 72 | I130: 0 | J130: 0 | K130: 0 | L130: 0 | M130: 4 | R130: 101 | U130: 108 | V130: 0 | W130: 0.01 | X130: 0.76
A131: 1068 | B131: 4 | C131: 7 | D131: 19 | E131: 26 | F131: 33 | G131: 35 | H131: 0 | I131: 0 | J131: 0 | K131: 0 | L131: 0 | M131: 0 | R131: 102 | U131: 109 | V131: 0 | W131: 0.01 | X131: 0.77
A132: 1067 | B132: 7 | C132: 10 | D132: 19 | E132: 23 | F132: 28 | G132: 33 | H132: 12 | I132: 0 | J132: 0 | K132: 0 | L132: 0 | M132: 0 | R132: 103 | U132: 110 | V132: 0 | W132: 0.01 | X132: 0.77
A133: =A134+1 -> 1066 | B133: 6 | C133: 11 | D133: 16 | E133: 19 | F133: 21 | G133: 32 | H133: 0 | I133: 0 | J133: 0 | K133: 0 | L133: 0 | M133: 0 | R133: 104 | U133: 111 | V133: 0 | W133: 0.01 | X133: 0.78
A134: 1065 | B134: 3 | C134: 18 | D134: 19 | E134: 23 | F134: 32 | G134: 45 | H134: 34 | I134: 0 | J134: 0 | K134: 0 | L134: 0 | M134: 1 | R134: 105 | U134: 112 | V134: 0 | W134: 0.01 | X134: 0.78
A135: 1064 | B135: 3 | C135: 6 | D135: 9 | E135: 18 | F135: 22 | G135: 35 | H135: 0 | I135: 0 | J135: 0 | K135: 0 | L135: 0 | M135: 0 | R135: 106 | U135: 113 | V135: 0 | W135: 0.01 | X135: 0.79
A136: 1063 | B136: 3 | C136: 6 | D136: 22 | E136: 23 | F136: 24 | G136: 38 | H136: 0 | I136: 0 | J136: 0 | K136: 0 | L136: 0 | M136: 0 | R136: 107 | U136: 114 | V136: 0 | W136: 0.01 | X136: 0.80
A137: 1062 | B137: 20 | C137: 31 | D137: 32 | E137: 40 | F137: 41 | G137: 45 | H137: 16 | I137: 0 | J137: 0 | K137: 0 | L137: 0 | M137: 0 | R137: 108 | U137: 115 | V137: 0 | W137: 0.01 | X137: 0.80
A138: 1061 | B138: 4 | C138: 24 | D138: 27 | E138: 35 | F138: 37 | G138: 45 | H138: 65 | I138: 0 | J138: 0 | K138: 0 | L138: 0 | M138: 5 | R138: 109 | U138: 116 | V138: 0 | W138: 0.01 | X138: 0.81
A139: 1060 | B139: 3 | C139: 10 | D139: 24 | E139: 33 | F139: 38 | G139: 45 | H139: 19 | I139: 0 | J139: 0 | K139: 0 | L139: 0 | M139: 2 | R139: 110 | U139: 117 | V139: 0 | W139: 0.01 | X139: 0.81
A140: 1059 | B140: 7 | C140: 10 | D140: 22 | E140: 25 | F140: 34 | G140: 40 | H140: 0 | I140: 0 | J140: 0 | K140: 0 | L140: 0 | M140: 0 | O140: 14 | P140: 17 | Q140: 22 | R140: 111 | U140: 118 | V140: 0 | W140: 0.01 | X140: 0.82
A141: 1058 | B141: 11 | C141: 23 | D141: 25 | E141: 30 | F141: 32 | G141: 40 | H141: 56 | I141: 0 | J141: 0 | K141: 0 | L141: 0 | M141: 1 | O141: 173 | P141: 226 | Q141: 287 | R141: 112 | U141: 119 | V141: 0 | W141: 0.01 | X141: 0.83
A142: 1057 | B142: 8 | C142: 13 | D142: 19 | E142: 27 | F142: 40 | G142: 45 | H142: 17 | I142: 0 | J142: 0 | K142: 0 | L142: 0 | M142: 1 | R142: 113 | U142: 120 | V142: 1 | W142: 0.01 | X142: 0.83
A143: 1056 | B143: 13 | C143: 20 | D143: 24 | E143: 32 | F143: 36 | G143: 45 | H143: 13 | I143: 0 | J143: 0 | K143: 0 | L143: 0 | M143: 1 | R143: 114 | U143: 121 | V143: 0 | W143: 0.01 | X143: 0.84
A144: 1055 | B144: 4 | C144: 7 | D144: 12 | E144: 14 | F144: 22 | G144: 33 | H144: 63 | I144: 0 | J144: 0 | K144: 0 | L144: 0 | M144: 1 | R144: 115 | U144: 122 | V144: 1 | W144: 0.01 | X144: 0.84
A145: 1054 | B145: 14 | C145: 19 | D145: 27 | E145: 28 | F145: 30 | G145: 45 | H145: 36 | I145: 0 | J145: 0 | K145: 0 | L145: 0 | M145: 3 | R145: 116 | U145: 123 | V145: 0 | W145: 0.01 | X145: 0.85
A146: 1053 | B146: 22 | C146: 26 | D146: 29 | E146: 30 | F146: 34 | G146: 45 | H146: 155 | I146: 0 | J146: 0 | K146: 0 | L146: 0 | M146: 2 | R146: 117 | U146: 124 | V146: 0 | W146: 0.00 | X146: 0.85
A147: 1052 | B147: 5 | C147: 17 | D147: 26 | E147: 27 | F147: 35 | G147: 38 | H147: 4 | I147: 0 | J147: 0 | K147: 0 | L147: 0 | M147: 0 | R147: 118 | U147: 125 | V147: 0 | W147: 0.00 | X147: 0.86
A148: 1051 | B148: 21 | C148: 26 | D148: 30 | E148: 32 | F148: 33 | G148: 35 | H148: 224 | I148: 0 | J148: 0 | K148: 0 | L148: 0 | M148: 0 | R148: 119 | U148: 126 | V148: 0 | W148: 0.00 | X148: 0.86
A149: 1050 | B149: 6 | C149: 12 | D149: 31 | E149: 35 | F149: 38 | G149: 43 | H149: 135 | I149: 0 | J149: 0 | K149: 0 | L149: 1 | M149: 1 | R149: 120 | U149: 127 | V149: 0 | W149: 0.00 | X149: 0.87
A150: 1049 | B150: 3 | C150: 5 | D150: 13 | E150: 20 | F150: 21 | G150: 37 | H150: 92 | I150: 0 | J150: 0 | K150: 0 | L150: 0 | M150: 1 | R150: 121 | U150: 128 | V150: 0 | W150: =_xlfn.NORM.DIST(U150,$S$23,$S$24,0) -> 0.00 | X150: =_xlfn.NORM.DIST(U150,$S$23,$S$24,1) -> 0.87
A151: 1048 | B151: 6 | C151: 12 | D151: 17 | E151: 21 | F151: 32 | G151: 39 | H151: 1 | I151: 0 | J151: 0 | K151: 0 | L151: 0 | M151: 0 | R151: 122 | U151: 129 | V151: 0 | W151: 0.00 | X151: 0.87
A152: 1047 | B152: 2 | C152: 20 | D152: 33 | E152: 40 | F152: 42 | G152: 44 | H152: 112 | I152: 0 | J152: 0 | K152: 0 | L152: 0 | M152: 0 | R152: 123 | U152: 130 | V152: 0 | W152: 0.00 | X152: 0.88
A153: 1046 | B153: 7 | C153: 16 | D153: 25 | E153: 29 | F153: 35 | G153: 36 | H153: 173 | I153: 1 | J153: 0 | K153: 0 | L153: 3 | M153: 8 | R153: 124 | U153: 131 | V153: 0 | W153: 0.00 | X153: 0.88
A154: 1045 | B154: 6 | C154: 14 | D154: 15 | E154: 19 | F154: 21 | G154: 41 | H154: 58 | I154: 0 | J154: 0 | K154: 0 | L154: 0 | M154: 3 | R154: 125 | U154: 132 | V154: 0 | W154: 0.00 | X154: 0.89
A155: 1044 | B155: 12 | C155: 17 | D155: 20 | E155: 26 | F155: 28 | G155: 36 | H155: 71 | I155: 0 | J155: 0 | K155: 0 | L155: 0 | M155: 5 | R155: 126 | U155: 133 | V155: 0 | W155: 0.00 | X155: 0.89
A156: 1043 | B156: 3 | C156: 5 | D156: 12 | E156: 22 | F156: 26 | G156: 31 | H156: 0 | I156: 0 | J156: 0 | K156: 0 | L156: 0 | M156: 0 | R156: 127 | U156: 134 | V156: 0 | W156: 0.00 | X156: 0.90
A157: 1042 | B157: 5 | C157: 14 | D157: 15 | E157: 23 | F157: 34 | G157: 43 | H157: 0 | I157: 0 | J157: 0 | K157: 0 | L157: 0 | M157: 0 | R157: 128 | U157: 135 | V157: 0 | W157: 0.00 | X157: 0.90
A158: 1041 | B158: 6 | C158: 7 | D158: 9 | E158: 11 | F158: 17 | G158: 18 | H158: 75 | I158: 0 | J158: 0 | K158: 0 | L158: 0 | M158: 1 | R158: 129 | U158: 136 | V158: 0 | W158: 0.00 | X158: 0.90
A159: 1040 | B159: 8 | C159: 16 | D159: 26 | E159: 29 | F159: 31 | G159: 36 | H159: 68 | I159: 0 | J159: 0 | K159: 0 | L159: 0 | M159: 0 | R159: 130 | U159: 137 | V159: 0 | W159: 0.00 | X159: 0.91
A160: 1039 | B160: 2 | C160: 3 | D160: 6 | E160: 19 | F160: 36 | G160: 39 | H160: 16 | I160: 0 | J160: 0 | K160: 0 | L160: 0 | M160: 2 | R160: =R159+1 -> 131 | U160: 138 | V160: 0 | W160: 0.00 | X160: 0.91
A161: 1038 | B161: 7 | C161: 16 | D161: 24 | E161: 27 | F161: 37 | G161: 44 | H161: 30 | I161: 0 | J161: 0 | K161: 0 | L161: 0 | M161: 0 | R161: 132 | U161: 139 | V161: 0 | W161: 0.00 | X161: 0.91
A162: 1037 | B162: 2 | C162: 14 | D162: 15 | E162: 22 | F162: 27 | G162: 33 | H162: 20 | I162: 0 | J162: 0 | K162: 0 | L162: 0 | M162: 3 | R162: 133 | U162: 140 | V162: 0 | W162: 0.00 | X162: 0.92
A163: 1036 | B163: 2 | C163: 5 | D163: 22 | E163: 32 | F163: 34 | G163: 45 | H163: 37 | I163: 0 | J163: 0 | K163: 0 | L163: 0 | M163: 0 | R163: 134 | U163: 141 | V163: 0 | W163: 0.00 | X163: 0.92
A164: 1035 | B164: 9 | C164: 14 | D164: 34 | E164: 35 | F164: 41 | G164: 42 | H164: 0 | I164: 0 | J164: 0 | K164: 0 | L164: 0 | M164: 0 | R164: 135 | U164: 142 | V164: 1 | W164: 0.00 | X164: 0.92
A165: 1034 | B165: 26 | C165: 31 | D165: 32 | E165: 33 | F165: 38 | G165: 40 | H165: 19 | I165: 0 | J165: 0 | K165: 0 | L165: 0 | M165: 0 | R165: 136 | U165: 143 | V165: 0 | W165: 0.00 | X165: 0.93
A166: 1033 | B166: 3 | C166: 11 | D166: 15 | E166: 20 | F166: 35 | G166: 44 | H166: 0 | I166: 0 | J166: 0 | K166: 0 | L166: 0 | M166: 0 | R166: 137 | U166: 144 | V166: 0 | W166: 0.00 | X166: 0.93
A167: 1032 | B167: 1 | C167: 6 | D167: 12 | E167: 19 | F167: 36 | G167: 42 | H167: 106 | I167: 0 | J167: 0 | K167: 0 | L167: 0 | M167: 1 | R167: 138 | U167: 145 | V167: 0 | W167: 0.00 | X167: 0.93
A168: 1031 | B168: 6 | C168: 7 | D168: 22 | E168: 32 | F168: 35 | G168: 36 | H168: 24 | I168: 0 | J168: 0 | K168: 0 | L168: 0 | M168: 0 | R168: 139 | U168: 146 | V168: 0 | W168: 0.00 | X168: 0.93
A169: 1030 | B169: 2 | C169: 5 | D169: 11 | E169: 17 | F169: 24 | G169: 29 | H169: 45 | I169: 0 | J169: 0 | K169: 0 | L169: 0 | M169: 1 | R169: 140 | U169: 147 | V169: 1 | W169: 0.00 | X169: 0.94
A170: 1029 | B170: 12 | C170: 30 | D170: 32 | E170: 37 | F170: 39 | G170: 41 | H170: 17 | I170: 0 | J170: 0 | K170: 0 | L170: 0 | M170: 1 | R170: 141 | U170: 148 | V170: 0 | W170: 0.00 | X170: 0.94
A171: 1028 | B171: 5 | C171: 7 | D171: 12 | E171: 13 | F171: 18 | G171: 35 | H171: 52 | I171: 0 | J171: 0 | K171: 0 | L171: 0 | M171: 3 | R171: 142 | U171: 149 | V171: 0 | W171: 0.00 | X171: 0.94
A172: 1027 | B172: 14 | C172: 16 | D172: 27 | E172: 35 | F172: 39 | G172: 45 | H172: 131 | I172: 0 | J172: 0 | K172: 0 | L172: 0 | M172: 2 | R172: 143 | U172: 150 | V172: 0 | W172: 0.00 | X172: 0.94
A173: 1026 | B173: 5 | C173: 12 | D173: 13 | E173: 31 | F173: 32 | G173: 41 | H173: 68 | I173: 0 | J173: 0 | K173: 0 | L173: 2 | M173: 1 | R173: 144 | U173: More | V173: 0
A174: 1025 | B174: 8 | C174: 9 | D174: 20 | E174: 25 | F174: 29 | G174: 33 | H174: 48 | I174: 0 | J174: 0 | K174: 0 | L174: 0 | M174: 3 | R174: 145
A175: 1024 | B175: 9 | C175: 18 | D175: 20 | E175: 22 | F175: 38 | G175: 44 | H175: 47 | I175: 0 | J175: 0 | K175: 0 | L175: 0 | M175: 0 | R175: 146
A176: 1023 | B176: 10 | C176: 14 | D176: 16 | E176: 18 | F176: 29 | G176: 35 | H176: 153 | I176: 0 | J176: 0 | K176: 0 | L176: 1 | M176: 5 | R176: 147
A177: 1022 | B177: 5 | C177: 6 | D177: 11 | E177: 29 | F177: 42 | G177: 45 | H177: 205 | I177: 1 | J177: 0 | K177: 1 | L177: 6 | M177: 11 | R177: 148
A178: 1021 | B178: 12 | C178: 15 | D178: 17 | E178: 24 | F178: 29 | G178: 45 | H178: 54 | I178: 0 | J178: 0 | K178: 0 | L178: 0 | M178: 2 | R178: 149
A179: 1020 | B179: 12 | C179: 27 | D179: 29 | E179: 38 | F179: 41 | G179: 45 | H179: 35 | I179: 0 | J179: 0 | K179: 0 | L179: 0 | M179: 1 | R179: 150
A180: 1019 | B180: 1 | C180: 4 | D180: 13 | E180: 17 | F180: 34 | G180: 39 | H180: 106 | I180: 0 | J180: 0 | K180: 0 | L180: 0 | M180: 6
A181: 1018 | B181: 3 | C181: 19 | D181: 21 | E181: 25 | F181: 37 | G181: 45 | H181: 0 | I181: 0 | J181: 0 | K181: 0 | L181: 0 | M181: 0
A182: 1017 | B182: 12 | C182: 18 | D182: 22 | E182: 23 | F182: 30 | G182: 34 | H182: 91 | I182: 0 | J182: 0 | K182: 0 | L182: 0 | M182: 1
A183: 1016 | B183: 15 | C183: 26 | D183: 28 | E183: 34 | F183: 41 | G183: 42 | H183: 0 | I183: 0 | J183: 0 | K183: 0 | L183: 0 | M183: 0
A184: 1015 | B184: 14 | C184: 23 | D184: 31 | E184: 33 | F184: 37 | G184: 40 | H184: 5 | I184: 0 | J184: 0 | K184: 0 | L184: 0 | M184: 0
A185: 1014 | B185: 3 | C185: 11 | D185: 14 | E185: 18 | F185: 26 | G185: 27 | H185: 35 | I185: 0 | J185: 0 | K185: 0 | L185: 0 | M185: 0
A186: 1013 | B186: 21 | C186: 22 | D186: 26 | E186: 34 | F186: 36 | G186: 41 | H186: 0 | I186: 0 | J186: 0 | K186: 0 | L186: 0 | M186: 0
A187: 1012 | B187: 5 | C187: 11 | D187: 18 | E187: 20 | F187: 35 | G187: 45 | H187: 271 | I187: 0 | J187: 0 | K187: 0 | L187: 0 | M187: 2
A188: 1011 | B188: 1 | C188: 9 | D188: 12 | E188: 26 | F188: 35 | G188: 38 | H188: 72 | I188: 0 | J188: 0 | K188: 0 | L188: 0 | M188: 4
A189: 1010 | B189: 9 | C189: 12 | D189: 15 | E189: 25 | F189: 34 | G189: 36 | H189: 0 | I189: 0 | J189: 0 | K189: 0 | L189: 0 | M189: 0
A190: 1009 | B190: 15 | C190: 23 | D190: 29 | E190: 34 | F190: 40 | G190: 44 | H190: 59 | I190: 0 | J190: 0 | K190: 0 | L190: 0 | M190: 3
A191: 1008 | B191: 9 | C191: 11 | D191: 30 | E191: 31 | F191: 41 | G191: 44 | H191: 0 | I191: 0 | J191: 0 | K191: 0 | L191: 0 | M191: 0
A192: 1007 | B192: 8 | C192: 11 | D192: 16 | E192: 19 | F192: 21 | G192: 25 | H192: 42 | I192: 0 | J192: 0 | K192: 0 | L192: 0 | M192: 3
A193: 1006 | B193: 8 | C193: 11 | D193: 15 | E193: 16 | F193: 17 | G193: 37 | H193: 3 | I193: 0 | J193: 0 | K193: 0 | L193: 0 | M193: 0
A194: 1005 | B194: 8 | C194: 13 | D194: 18 | E194: 24 | F194: 27 | G194: 29 | H194: 189 | I194: 0 | J194: 0 | K194: 0 | L194: 0 | M194: 0
A195: 1004 | B195: 7 | C195: 15 | D195: 30 | E195: 37 | F195: 39 | G195: 44 | H195: 303 | I195: 1 | J195: 0 | K195: 2 | L195: 1 | M195: 16
A196: 1003 | B196: 1 | C196: 4 | D196: 29 | E196: 39 | F196: 43 | G196: 45 | H196: 14 | I196: 0 | J196: 0 | K196: 0 | L196: 0 | M196: 1
A197: =A198+1 -> 1002 | B197: 17 | C197: 25 | D197: 33 | E197: 35 | F197: 38 | G197: 45 | H197: 0 | I197: 0 | J197: 0 | K197: 0 | L197: 0 | M197: 0
A198: 1001 | B198: 6 | C198: 10 | D198: 12 | E198: 14 | F198: 20 | G198: 42 | H198: 5 | I198: 0 | J198: 0 | K198: 0 | L198: 0 | M198: 0
A199: 1000 | B199: 2 | C199: 8 | D199: 19 | E199: 22 | F199: 32 | G199: 42 | H199: 3 | I199: 0 | J199: 0 | K199: 0 | L199: 0 | M199: 0
A200: 999 | B200: 1 | C200: 3 | D200: 9 | E200: 14 | F200: 18 | G200: 28 | H200: 98 | I200: 0 | J200: 0 | K200: 0 | L200: 0 | M200: 1
... 998 more rows

Sheet VIEW
A1: NO | B1: b1 | C1: b2 | D1: b3 | E1: b4 | F1: b5 | G1: b6 | H1: 추천개수 | I1: 1등 | J1: 2등 | K1: 3등 | L1: 4등 | M1: 5등 | N1: VIEW | Q1: 최대-현재 | R1: 해당일 | S1: NO | T1: WEEKS | U1: DAYS | V1: MONTH | W1: 추천 정보 | AK1: 누적지출 정보
A2: 1189 | W2: b1 | X2: b2 | Y2: b3 | Z2: b4 | AA2: b5 | AB2: b6 | AC2: 추천개수 | AD2: 1등 | AE2: 2등 | AF2: 3등 | AG2: 4등 | AH2: 5등 | AI2: 당첨금 | AJ2: 당첨일 | AK2: 평균추천개수 | AL2: 총비용 | AM2: 게임당 비용 | AN2: 당첨금 (1등제외) | AO2: 1등 | AP2: 2등 | AQ2: 3등 | AR2: 4등 | AS2: 5등
A3: 1188 | B3: 3 | C3: 4 | D3: 12 | E3: 19 | F3: 22 | G3: 27 | Q3: =T17-T3 -> 4 | R3: 2024-06-08 | S3: =S71 -> 1189 | T3: =S3-S4 -> 143 | U3: =T3*7 -> 1,001 | V3: =T3/4 -> 36 | W3: … | X3: … | Y3: … | Z3: … | AA3: … | AB3: … | AD3: … | AE3: … | AF3: … | AG3: … | AH3: … | AI3: 37,489,293,905 | AJ3: 2025-10-11 (예상) | AK3: 46 | AL3: 3,591,000 | AM3: 44,888 | AN3: 620,000 | AO3: 0 | AP3: 0 | AQ3: 0 | AR3: 4 | AS3: 84
A4: 1187 | B4: 5 | C4: 13 | D4: 26 | E4: 29 | F4: 37 | G4: 40 | R4: 20 | S4: 1046 | T4: 24 | U4: 168 | V4: 6 | W4: 7 | X4: 16 | Y4: 25 | Z4: 29 | AA4: 35 | AB4: 36 | AC4: 173 | AD4: 1 | AE4: 0 | AF4: 0 | AG4: 3 | AH4: 4 | AI4: 2,011,585,719 | AJ4: 2022-12-17 | AK4: 53 | AL4: 1,258,000 | AM4: 52,417 | AN4: 475,000 | AO4: 1 | AP4: 0 | AQ4: 0 | AR4: 6 | AS4: 35
A5: 1186 | B5: 2 | C5: 8 | D5: 13 | E5: 16 | F5: 23 | G5: 28 | R5: 10 | S5: 1022 | T5: 18 | U5: 126 | V5: 4 | W5: 5 | X5: 6 | Y5: 11 | Z5: 29 | AA5: 42 | AB5: 45 | AC5: 96 | AD5: 1 | AE5: 0 | AF5: 0 | AG5: 6 | AH5: 5 | AI5: 4,866,793,075 | AJ5: 2022-07-02 | AK5: 59 | AL5: 1,058,000 | AM5: 58,778 | AN5: 435,000 | AO5: 1 | AP5: 0 | AQ5: 0 | AR5: 6 | AS5: 27
A6: =A7+1 -> 1185 | B6: 6 | C6: 17 | D6: 22 | E6: 28 | F6: 29 | G6: 32 | H6: 0 | I6: 0 | J6: 0 | K6: 0 | L6: 0 | M6: 0 | R6: 100 | S6: 1004 | T6: 104 | U6: 728 | V6: 24 | W6: 7 | X6: 15 | Y6: 30 | Z6: 37 | AA6: 39 | AB6: 44 | AC6: 216 | AD6: 1 | AE6: 0 | AF6: 1 | AG6: 0 | AH6: 9 | AI6: 2,577,838,656 | AJ6: 2022-02-26 | AK6: 59 | AL6: 6,117,000 | AM6: 58,817 | AN6: 2,865,000 | AO6: 1 | AP6: 0 | AQ6: 1 | AR6: 16 | AS6: 173
A7: 1184 | B7: 14 | C7: 16 | D7: 23 | E7: 25 | F7: 31 | G7: 37 | H7: 0 | I7: 0 | J7: 0 | K7: 0 | L7: 0 | M7: 0 | R7: 80 | S7: 900 | T7: 84 | U7: 588 | V7: 20 | W7: 7 | X7: 13 | Y7: 16 | Z7: 18 | AA7: 35 | AB7: 38 | AC7: 346 | AD7: 1 | AE7: 0 | AF7: 0 | AG7: 4 | AH7: 22 | AI7: 3,350,161,375 | AJ7: 2020-02-29 | AK7: 57 | AL7: 4,733,000 | AM7: 56,345 | AN7: 1,910,000 | AO7: 1 | AP7: 0 | AQ7: 0 | AR7: 25 | AS7: 132
A8: 1183 | B8: 4 | C8: 15 | D8: 17 | E8: 23 | F8: 27 | G8: 36 | H8: 42 | I8: 0 | J8: 0 | K8: 0 | L8: 0 | M8: 0 | R8: 120 | S8: 816 | T8: 120 | U8: 840 | V8: 28 | W8: 12 | X8: 18 | Y8: 19 | Z8: 29 | AA8: 31 | AB8: 39 | AC8: 36 | AD8: 1 | AE8: 0 | AF8: 0 | AG8: 4 | AH8: 22 | AI8: 2,128,417,938 | AJ8: 2017-07-21 | AK8: 57 | AL8: 6,760,000 | AM8: 56,333 | AN8: 4,365,000 | AO8: 1 | AP8: 0 | AQ8: 2 | AR8: 21 | AS8: 183
A9: 1182 | B9: 1 | C9: 13 | D9: 21 | E9: 25 | F9: 28 | G9: 31 | H9: 125 | I9: 0 | J9: 0 | K9: 0 | L9: 0 | M9: 1 | R9: 120 | S9: 696 | T9: 122 | U9: 854 | V9: 28 | W9: 1 | X9: 7 | Y9: 16 | Z9: 18 | AA9: 34 | AB9: 38 | AC9: 101 | AD9: 1 | AE9: 0 | AF9: 0 | AG9: 2 | AH9: 14 | AI9: 1,632,224,413 | AJ9: 2016-04-02 | AK9: 64 | AL9: 7,748,000 | AM9: 63,508 | AN9: 2,345,000 | AO9: 1 | AP9: 0 | AQ9: 0 | AR9: 24 | AS9: 229
A10: 1181 | B10: 8 | C10: 10 | D10: 14 | E10: 20 | F10: 33 | G10: 41 | H10: 58 | I10: 0 | J10: 0 | K10: 0 | L10: 0 | M10: 0 | R10: 50 | S10: 574 | T10: 50 | U10: 350 | V10: 12 | W10: 14 | X10: 15 | Y10: 16 | Z10: 19 | AA10: 25 | AB10: 43 | AC10: 89 | AD10: 1 | AE10: 0 | AF10: 0 | AG10: 0 | AH10: 17 | AI10: 6,965,269,938 | AJ10: 2013-11-30 | AK10: 60 | AL10: 3,000,000 | AM10: 60,000 | AN10: 795,000 | AO10: 1 | AP10: 0 | AQ10: 0 | AR10: 8 | AS10: 79
A11: 1180 | B11: 6 | C11: 12 | D11: 18 | E11: 37 | F11: 40 | G11: 41 | H11: 0 | I11: 0 | J11: 0 | K11: 0 | L11: 0 | M11: 0 | R11: 0 | S11: 524 | T11: 1 | U11: 0 | V11: 0 | W11: 10 | X11: 11 | Y11: 29 | Z11: 38 | AA11: 41 | AB11: 45 | AC11: 178 | AD11: 1 | AE11: 0 | AF11: 0 | AG11: 4 | AH11: 12 | AI11: 3,491,955,594 | AJ11: 2012-12-15 | AK11: 178 | AL11: 178,000 | AM11: 178,000 | AN11: 260,000 | AO11: 1 | AP11: 0 | AQ11: 0 | AR11: 4 | AS11: 12
A12: 1179 | B12: 3 | C12: 16 | D12: 18 | E12: 24 | F12: 40 | G12: 44 | H12: 206 | I12: 0 | J12: 0 | K12: 0 | L12: 0 | M12: 12 | R12: 60 | S12: 523 | T12: 62 | U12: 434 | V12: 14 | W12: 1 | X12: 4 | Y12: 37 | Z12: 38 | AA12: 40 | AB12: 45 | AC12: 187 | AD12: 1 | AE12: 0 | AF12: 0 | AG12: 1 | AH12: 6 | AI12: 1,780,435,840 | AJ12: 2012-12-08 | AK12: 64 | AL12: 3,913,000 | AM12: 63,113 | AN12: 3,765,000 | AO12: 1 | AP12: 0 | AQ12: 2 | AR12: 16 | AS12: 113
A13: 1178 | B13: 5 | C13: 6 | D13: 11 | E13: 27 | F13: 43 | G13: 44 | H13: 221 | I13: 0 | J13: 0 | K13: 0 | L13: 1 | M13: 11 | R13: 100 | S13: 461 | T13: 105 | U13: 735 | V13: 25 | W13: 11 | X13: 18 | Y13: 26 | Z13: 31 | AA13: 37 | AB13: 40 | AC13: 239 | AD13: 1 | AE13: 0 | AF13: 1 | AG13: 1 | AH13: 10 | AI13: 1,949,909,806 | AJ13: 2011-10-01 | AK13: 53 | AL13: 5,559,000 | AM13: 52,943 | AN13: 2,650,000 | AO13: 1 | AP13: 0 | AQ13: 1 | AR13: 15 | AS13: 140
A14: 1177 | B14: 3 | C14: 7 | D14: 15 | E14: 16 | F14: 19 | G14: 43 | H14: 62 | I14: 0 | J14: 0 | K14: 0 | L14: 0 | M14: 4 | R14: 30 | S14: 356 | T14: 32 | U14: 224 | V14: 7 | W14: 2 | X14: 8 | Y14: 14 | Z14: 25 | AA14: 29 | AB14: 45 | AC14: 103 | AD14: 1 | AE14: 0 | AF14: 1 | AG14: 3 | AH14: 18 | AI14: 1,157,425,267 | AJ14: 2009-09-26 | AK14: 68 | AL14: 2,148,000 | AM14: 67,125 | AN14: 3,445,000 | AO14: 1 | AP14: 0 | AQ14: 2 | AR14: 13 | AS14: 79
A15: 1176 | B15: 7 | C15: 9 | D15: 11 | E15: 21 | F15: 30 | G15: 35 | H15: 109 | I15: 0 | J15: 0 | K15: 0 | L15: 0 | M15: 1 | R15: 30 | S15: 324 | T15: 35 | U15: 245 | V15: 8 | W15: 2 | X15: 4 | Y15: 21 | Z15: 25 | AA15: 33 | AB15: 36 | AC15: 77 | AD15: 1 | AE15: 0 | AF15: 0 | AG15: 4 | AH15: 17 | AI15: 1,865,415,350 | AJ15: 2009-02-14 | AK15: 54 | AL15: 1,878,000 | AM15: 53,657 | AN15: 680,000 | AO15: 1 | AP15: 0 | AQ15: 0 | AR15: 7 | AS15: 66
A16: 1175 | B16: 3 | C16: 4 | D16: 6 | E16: 8 | F16: 32 | G16: 42 | H16: 0 | I16: 0 | J16: 0 | K16: 0 | L16: 0 | M16: 0 | R16: 140 | S16: 289 | T16: 142 | U16: 994 | V16: 33 | W16: 3 | X16: 14 | Y16: 33 | Z16: 37 | AA16: 38 | AB16: 42 | AC16: 184 | AD16: 1 | AE16: 0 | AF16: 0 | AG16: 4 | AH16: 17 | AI16: 2,011,700,719 | AJ16: 2008-06-14 | AK16: 60 | AL16: 8,510,000 | AM16: 59,930 | AN16: 4,295,000 | AO16: 1 | AP16: 0 | AQ16: 2 | AR16: 17 | AS16: 209
A17: 1174 | B17: 8 | C17: 11 | D17: 14 | E17: 17 | F17: 36 | G17: 39 | H17: 17 | I17: 0 | J17: 0 | K17: 0 | L17: 0 | M17: 0 | R17: 140 | S17: 147 | T17: 147 | U17: 1,029 | V17: 34 | W17: 4 | X17: 6 | Y17: 13 | Z17: 21 | AA17: 40 | AB17: 42 | AC17: 167 | AD17: 1 | AE17: 0 | AF17: 0 | AG17: 2 | AH17: 4 | AI17: 1,700,160,215 | AJ17: 2005-09-24 | AK17: 60 | AL17: 7,616,000 | AM17: 51,810 | AN17: 4,130,000 | AO17: 1 | AP17: 0 | AQ17: 1 | AR17: 36 | AS17: 226
A18: 1173 | B18: 1 | C18: 5 | D18: 18 | E18: 20 | F18: 30 | G18: 35 | H18: 60 | I18: 0 | J18: 0 | K18: 0 | L18: 0 | M18: 1 | S18: 14번 | T18: 74.7 | U18: 522.5 | V18: 17.4 | W18: 6.1 | X18: 11.1 | Y18: 21.9 | Z18: 28.1 | AA18: 35.6 | AB18: 41.3 | AC18: 157 | AD18: 1.0 | AE18: 0.0 | AF18: 0.2 | AG18: 2.7 | AH18: 12.6 | AI18: 2,677,806,708 | AK18: 68 | AL18: 4,319,715 | AM18: 66,627
A19: 1172 | B19: 7 | C19: 9 | D19: 24 | E19: 40 | F19: 42 | G19: 44 | H19: 0 | I19: 0 | J19: 0 | K19: 0 | L19: 0 | M19: 0
A20: 1171 | B20: 3 | C20: 6 | D20: 7 | E20: 11 | F20: 12 | G20: 17 | H20: 245 | I20: 0 | J20: 0 | K20: 0 | L20: 0 | M20: 0 | Q20: 최대-현재 | R20: 최초시작일 | S20: NO | T20: WEEKS | U20: DAYS | V20: MONTH | W20: 추천 정보 | AK20: 누적지출 정보
A21: 1170 | B21: 3 | C21: 13 | D21: 28 | E21: 34 | F21: 38 | G21: 42 | H21: 25 | I21: 0 | J21: 0 | K21: 0 | L21: 0 | M21: 4 | W21: b1 | X21: b2 | Y21: b3 | Z21: b4 | AA21: b5 | AB21: b6 | AC21: 추천개수 | AD21: 1등 | AE21: 2등 | AF21: 3등 | AG21: 4등 | AH21: 5등 | AI21: 당첨금 | AJ21: 당첨일 | AK21: 평균추천개수 | AL21: 총비용 | AM21: 게임당 비용 | AN21: 당첨금 (1등제외) | AO21: 1등 | AP21: 2등 | AQ21: 3등 | AR21: 4등 | AS21: 5등
A22: =A23+1 -> 1169 | B22: 5 | C22: 12 | D22: 24 | E22: 26 | F22: 39 | G22: 42 | H22: 97 | I22: 0 | J22: 0 | K22: 0 | L22: 0 | M22: 6 | Q22: =T37-T22 -> (1) | R22: 2024-06-15 | S22: =S71 -> 1189 | T22: =S22-S23 -> 143 | U22: =T22*7 -> 1,001 | V22: =T22/4 -> 36 | W22: … | X22: … | Y22: … | Z22: … | AA22: … | AB22: … | AD22: … | AE22: … | AF22: … | AG22: … | AH22: … | AI22: 43,286,266,948 | AJ22: 2025-09-06 (예상) | AK22: 62 | AL22: 4,830,000 | AM22: 60,375 | AN22: 3,345,000 | AO22: 0 | AP22: 0 | AQ22: 2 | AR22: 7 | AS22: 119
A23: 1168 | B23: 9 | C23: 21 | D23: 24 | E23: 30 | F23: 33 | G23: 37 | H23: 0 | I23: 0 | J23: 0 | K23: 0 | L23: 0 | M23: 0 | R23: 20 | S23: 1046 | T23: 24 | U23: 168 | V23: 6 | W23: 7 | X23: 16 | Y23: 25 | Z23: 29 | AA23: 35 | AB23: 36 | AC23: 226 | AD23: 1 | AE23: 0 | AF23: 0 | AG23: 3 | AH23: 7 | AI23: 2,011,600,719 | AJ23: 2022-12-17 | AK23: 68 | AL23: 1,612,000 | AM23: 67,167 | AN23: 515,000 | AO23: 1 | AP23: 0 | AQ23: 0 | AR23: 6 | AS23: 43
A24: 1167 | B24: 8 | C24: 23 | D24: 31 | E24: 35 | F24: 39 | G24: 40 | H24: 0 | I24: 0 | J24: 0 | K24: 0 | L24: 0 | M24: 0 | R24: 10 | S24: 1022 | T24: 18 | U24: 126 | V24: 4 | W24: 5 | X24: 6 | Y24: 11 | Z24: 29 | AA24: 42 | AB24: 45 | AC24: 110 | AD24: 1 | AE24: 0 | AF24: 0 | AG24: 6 | AH24: 6 | AI24: 4,866,798,075 | AJ24: 2022-07-02 | AK24: 77 | AL24: 1,378,000 | AM24: 76,556 | AN24: 645,000 | AO24: 1 | AP24: 0 | AQ24: 0 | AR24: 8 | AS24: 49
A25: 1166 | B25: 14 | C25: 23 | D25: 25 | E25: 27 | F25: 29 | G25: 42 | H25: 243 | I25: 0 | J25: 0 | K25: 0 | L25: 0 | M25: 3 | R25: 100 | S25: 1004 | T25: 104 | U25: 728 | V25: 24 | W25: 7 | X25: 15 | Y25: 30 | Z25: 37 | AA25: 39 | AB25: 44 | AC25: 266 | AD25: 1 | AE25: 0 | AF25: 2 | AG25: 1 | AH25: 13 | AI25: 2,579,450,399 | AJ25: 2022-02-26 | AK25: 77 | AL25: 7,954,000 | AM25: 76,481 | AN25: 6,845,000 | AO25: 1 | AP25: 0 | AQ25: 4 | AR25: 18 | AS25: 229
A26: 1165 | B26: 6 | C26: 7 | D26: 27 | E26: 29 | F26: 38 | G26: 45 | H26: 0 | I26: 0 | J26: 0 | K26: 0 | L26: 0 | M26: 0 | R26: 80 | S26: 900 | T26: 84 | U26: 588 | V26: 20 | W26: 7 | X26: 13 | Y26: 16 | Z26: 18 | AA26: 35 | AB26: 38 | AC26: 411 | AD26: 1 | AE26: 0 | AF26: 0 | AG26: 4 | AH26: 25 | AI26: 3,350,176,375 | AJ26: 2020-02-29 | AK26: 75 | AL26: 6,296,000 | AM26: 74,952 | AN26: 1,730,000 | AO26: 1 | AP26: 0 | AQ26: 0 | AR26: 17 | AS26: 176
A27: 1164 | B27: 17 | C27: 18 | D27: 23 | E27: 25 | F27: 38 | G27: 39 | H27: 206 | I27: 0 | J27: 0 | K27: 0 | L27: 0 | M27: 3 | R27: 100 | S27: 816 | T27: 101 | U27: 707 | V27: 24 | W27: 12 | X27: 18 | Y27: 19 | Z27: 29 | AA27: 31 | AB27: 39 | AC27: 46 | AD27: 1 | AE27: 0 | AF27: 0 | AG27: 0 | AH27: 5 | AI27: 2,128,132,938 | AJ27: 2017-07-21 | AK27: 78 | AL27: 7,819,000 | AM27: 77,416 | AN27: 1,990,000 | AO27: 1 | AP27: 0 | AQ27: 0 | AR27: 21 | AS27: 188
A28: 1163 | B28: 2 | C28: 13 | D28: 15 | E28: 16 | F28: 33 | G28: 43 | H28: 0 | I28: 0 | J28: 0 | K28: 0 | L28: 0 | M28: 0 | R28: 10 | S28: 715 | T28: 19 | U28: 133 | V28: 4 | W28: 2 | X28: 7 | Y28: 27 | Z28: 33 | AA28: 41 | AB28: 44 | AC28: 164 | AD28: 1 | AE28: 0 | AF28: 0 | AG28: 6 | AH28: 10 | AI28: 2,605,860,438 | AJ28: 2016-08-13 | AK28: 60 | AL28: 1,129,000 | AM28: 59,421 | AN28: 515,000 | AO28: 1 | AP28: 0 | AQ28: 0 | AR28: 6 | AS28: 43
A29: 1162 | B29: 20 | C29: 21 | D29: 22 | E29: 25 | F29: 28 | G29: 29 | H29: 4 | I29: 0 | J29: 0 | K29: 0 | L29: 0 | M29: 0 | R29: 100 | S29: 696 | T29: 103 | U29: 721 | V29: 24 | W29: 1 | X29: 7 | Y29: 16 | Z29: 18 | AA29: 34 | AB29: 38 | AC29: 130 | AD29: 1 | AE29: 0 | AF29: 0 | AG29: 2 | AH29: 16 | AI29: 1,632,234,413 | AJ29: 2016-04-02 | AK29: 78 | AL29: 8,029,000 | AM29: 77,951 | AN29: 2,040,000 | AO29: 1 | AP29: 0 | AQ29: 0 | AR29: 19 | AS29: 218
A30: 1161 | B30: 2 | C30: 12 | D30: 20 | E30: 24 | F30: 34 | G30: 42 | H30: 0 | I30: 0 | J30: 0 | K30: 0 | L30: 0 | M30: 0 | R30: 10 | S30: 593 | T30: 19 | U30: 133 | V30: 4 | W30: 9 | X30: 10 | Y30: 13 | Z30: 24 | AA30: 33 | AB30: 38 | AC30: 249 | AD30: 1 | AE30: 0 | AF30: 0 | AG30: 8 | AH30: 11 | AI30: 1,533,288,500 | AJ30: 2014-04-12 | AK30: 105 | AL30: 1,985,000 | AM30: 104,474 | AN30: 790,000 | AO30: 1 | AP30: 0 | AQ30: 0 | AR30: 10 | AS30: 58
A31: 1160 | B31: 7 | C31: 13 | D31: 18 | E31: 36 | F31: 39 | G31: 45 | H31: 91 | I31: 0 | J31: 0 | K31: 0 | L31: 0 | M31: 5 | R31: 50 | S31: 574 | T31: 50 | U31: 350 | V31: 12 | W31: 14 | X31: 15 | Y31: 16 | Z31: 19 | AA31: 25 | AB31: 43 | AC31: 111 | AD31: 1 | AE31: 0 | AF31: 0 | AG31: 0 | AH31: 17 | AI31: 6,965,269,938 | AJ31: 2013-11-30 | AK31: 80 | AL31: 3,975,000 | AM31: 79,500 | AN31: 935,000 | AO31: 1 | AP31: 0 | AQ31: 0 | AR31: 8 | AS31: 107
A32: 1159 | B32: 3 | C32: 9 | D32: 27 | E32: 28 | F32: 38 | G32: 39 | H32: 46 | I32: 0 | J32: 0 | K32: 0 | L32: 0 | M32: 3 | R32: 0 | S32: 524 | T32: 1 | U32: 7 | V32: 0 | W32: 10 | X32: 11 | Y32: 29 | Z32: 38 | AA32: 41 | AB32: 45 | AC32: 206 | AD32: 1 | AE32: 0 | AF32: 1 | AG32: 4 | AH32: 15 | AI32: 3,493,710,353 | AJ32: 2012-12-15 | AK32: 206 | AL32: 206,000 | AM32: 206,000 | AN32: 1,475,000 | AO32: 1 | AP32: 0 | AQ32: 1 | AR32: 4 | AS32: 15
A33: 1158 | B33: 21 | C33: 25 | D33: 27 | E33: 32 | F33: 37 | G33: 38 | H33: 0 | I33: 0 | J33: 0 | K33: 0 | L33: 0 | M33: 0 | R33: 60 | S33: 523 | T33: 62 | U33: 434 | V33: 14 | W33: 1 | X33: 4 | Y33: 37 | Z33: 38 | AA33: 40 | AB33: 45 | AC33: 237 | AD33: 1 | AE33: 0 | AF33: 2 | AG33: 3 | AH33: 16 | AI33: 1,783,253,898 | AJ33: 2012-12-08 | AK33: 84 | AL33: 5,189,000 | AM33: 83,694 | AN33: 6,810,000 | AO33: 1 | AP33: 0 | AQ33: 4 | AR33: 25 | AS33: 152
A34: 1157 | B34: 5 | C34: 7 | D34: 12 | E34: 20 | F34: 25 | G34: 26 | H34: 0 | I34: 0 | J34: 0 | K34: 0 | L34: 0 | M34: 0 | R34: 100 | S34: 461 | T34: 105 | U34: 735 | V34: 25 | W34: 11 | X34: 18 | Y34: 26 | Z34: 31 | AA34: 37 | AB34: 40 | AC34: 298 | AD34: 1 | AE34: 0 | AF34: 1 | AG34: 1 | AH34: 18 | AI34: 1,949,949,806 | AJ34: 2011-10-01 | AK34: 71 | AL34: 7,424,000 | AM34: 70,705 | AN34: 3,250,000 | AO34: 1 | AP34: 0 | AQ34: 1 | AR34: 22 | AS34: 190
A35: 1156 | B35: 30 | C35: 31 | D35: 34 | E35: 39 | F35: 41 | G35: 45 | H35: 182 | I35: 0 | J35: 0 | K35: 0 | L35: 1 | M35: 11 | R35: 30 | S35: 356 | T35: 32 | U35: 224 | V35: 7 | W35: 2 | X35: 8 | Y35: 14 | Z35: 25 | AA35: 29 | AB35: 45 | AC35: 128 | AD35: 1 | AE35: 0 | AF35: 1 | AG35: 4 | AH35: 19 | AI35: 1,158,854,597 | AJ35: 2009-09-26 | AK35: 86 | AL35: 2,748,000 | AM35: 85,875 | AN35: 3,600,000 | AO35: 1 | AP35: 0 | AQ35: 2 | AR35: 15 | AS35: 90
A36: 1155 | B36: 10 | C36: 16 | D36: 19 | E36: 27 | F36: 37 | G36: 38 | H36: 28 | I36: 0 | J36: 0 | K36: 0 | L36: 0 | M36: 2 | R36: 30 | S36: 324 | T36: 35 | U36: 245 | V36: 8 | W36: 2 | X36: 4 | Y36: 21 | Z36: 25 | AA36: 33 | AB36: 36 | AC36: 91 | AD36: 1 | AE36: 0 | AF36: 0 | AG36: 0 | AH36: 2 | AI36: 1,865,140,350 | AJ36: 2009-02-14 | AK36: 70 | AL36: 2,438,000 | AM36: 69,657 | AN36: 1,865,000 | AO36: 1 | AP36: 0 | AQ36: 1 | AR36: 7 | AS36: 63
A37: 1154 | B37: 4 | C37: 8 | D37: 22 | E37: 26 | F37: 32 | G37: 38 | H37: 428 | I37: 428 | J37: 0 | K37: 0 | L37: 0 | M37: 12 | R37: 140 | S37: 289 | T37: 142 | U37: 994 | V37: 33 | W37: 3 | X37: 14 | Y37: 33 | Z37: 37 | AA37: 38 | AB37: 42 | AC37: 224 | AD37: 1 | AE37: 0 | AF37: 0 | AG37: 4 | AH37: 10 | AI37: 2,011,665,719 | AJ37: 2008-06-14 | AK37: 78 | AL37: 10,957,000 | AM37: 77,162 | AN37: 5,080,000 | AO37: 1 | AP37: 0 | AQ37: 2 | AR37: 28 | AS37: 256
A38: 1153 | B38: 1 | C38: 9 | D38: 10 | E38: 13 | F38: 35 | G38: 44 | H38: 0 | I38: 0 | J38: 0 | K38: 0 | L38: 0 | M38: 0 | R38: 0 | S38: 147 | T38: 8 | U38: 56 | V38: 2 | W38: 4 | X38: 6 | Y38: 13 | Z38: 21 | AA38: 40 | AB38: 42 | AC38: 201 | AD38: 1 | AE38: 0 | AF38: 0 | AG38: 2 | AH38: 5 | AI38: 1,700,165,215 | AJ38: 2005-09-24 | AK38: 129 | AL38: 1,025,000 | AM38: 128,125 | AN38: 275,000 | AO38: 1 | AP38: 0 | AQ38: 0 | AR38: 3 | AS38: 25
A39: 1152 | B39: 30 | C39: 31 | D39: 32 | E39: 35 | F39: 36 | G39: 37 | H39: 13 | I39: 0 | J39: 0 | K39: 0 | L39: 0 | M39: 0 | R39: 130 | S39: 139 | T39: 139 | U39: 973 | V39: 32 | W39: 9 | X39: 11 | Y39: 15 | Z39: 20 | AA39: 28 | AB39: 43 | AC39: 500 | AD39: 1 | AE39: 0 | AF39: 0 | AG39: 8 | AH39: 21 | AI39: 1,650,715,215 | AJ39: 2005-07-30 | AK39: 74 | AL39: 8,755,000 | AM39: 62,986 | AN39: 5,715,000 | AO39: 1 | AP39: 0 | AQ39: 2 | AR39: 40 | AS39: 263
A40: 1151 | B40: 2 | C40: 3 | D40: 9 | E40: 15 | F40: 27 | G40: 29 | H40: 0 | I40: 0 | J40: 0 | K40: 0 | L40: 0 | M40: 0 | S40: 17회 | T40: 61.5 | U40: 430.7 | V40: 14.4 | W40: 6.2 | X40: 10.8 | Y40: 21.2 | Z40: 27.7 | AA40: 35.4 | AB40: 41.4 | AC40: 212 | AD40: 1.0 | AE40: 0.0 | AF40: 0.4 | AG40: 3.3 | AH40: 12.7 | AI40: 2,546,250,997 | AK40: 88 | AL40: 4,642,295 | AM40: 86,948 | AN40: 2,592,647 | AO40: 1.0 | AP40: 0 | AQ40: 1.0 | AR40: 16.0 | AS40: 128.0
A41: 1150 | B41: 8 | C41: 9 | D41: 18 | E41: 35 | F41: 39 | G41: 45 | H41: 101 | I41: 0 | J41: 0 | K41: 0 | L41: 0 | M41: 6
A42: 1149 | B42: 8 | C42: 15 | D42: 19 | E42: 21 | F42: 32 | G42: 36 | H42: 0 | I42: 0 | J42: 0 | K42: 0 | L42: 0 | M42: 0 | Q42: 최대-현재 | R42: 최초시작일 | S42: NO | T42: WEEKS | U42: DAYS | V42: MONTH | W42: 추천 정보 | AK42: 누적지출 정보
A43: 1148 | B43: 3 | C43: 6 | D43: 13 | E43: 15 | F43: 16 | G43: 22 | H43: 460 | I43: 0 | J43: 0 | K43: 0 | L43: 0 | M43: 22 | W43: b1 | X43: b2 | Y43: b3 | Z43: b4 | AA43: b5 | AB43: b6 | AC43: 추천개수 | AD43: 1등 | AE43: 2등 | AF43: 3등 | AG43: 4등 | AH43: 5등 | AI43: 당첨금 | AJ43: 당첨일 | AK43: 평균추천개수 | AL43: 총비용 | AM43: 게임당 비용 | AN43: 당첨금 (1등제외) | AO43: 1등 | AP43: 2등 | AQ43: 3등 | AR43: 4등 | AS43: 5등
A44: 1147 | B44: 7 | C44: 11 | D44: 24 | E44: 26 | F44: 27 | G44: 37 | H44: 506 | I44: 0 | J44: 0 | K44: 0 | L44: 0 | M44: 11 | Q44: =T63-T44 -> (1) | R44: 2024-06-29 | S44: =S71 -> 1189 | T44: =S44-S45 -> 143 | U44: =T44*7 -> 1,001 | V44: =T44/4 -> 36 | W44: … | X44: … | Y44: … | Z44: … | AA44: … | AB44: … | AD44: … | AE44: … | AF44: … | AG44: … | AH44: … | AI44: 55,943,132,639 | AJ44: 2025-09-06 (예상) | AK44: 106 | AL44: 8,296,000 | AM44: 103,700 | AN44: 4,175,000 | AO44: 0 | AP44: 0 | AQ44: 2 | AR44: 16 | AS44: 195
A45: 1146 | B45: 6 | C45: 11 | D45: 17 | E45: 19 | F45: 40 | G45: 43 | H45: 50 | I45: 0 | J45: 0 | K45: 0 | L45: 0 | M45: 0 | R45: 20 | S45: 1046 | T45: 24 | U45: 168 | V45: 6 | W45: 7 | X45: 16 | Y45: 25 | Z45: 29 | AA45: 35 | AB45: 36 | AC45: 287 | AD45: 1 | AE45: 0 | AF45: 0 | AG45: 3 | AH45: 8 | AI45: 2,011,605,719 | AJ45: 2022-12-17 | AK45: 112 | AL45: 2,680,000 | AM45: 111,667 | AN45: 1,800,000 | AO45: 1 | AP45: 0 | AQ45: 1 | AR45: 6 | AS45: 60
A46: 1145 | B46: 2 | C46: 11 | D46: 31 | E46: 33 | F46: 37 | G46: 44 | H46: 200 | I46: 0 | J46: 0 | K46: 0 | L46: 0 | M46: 1 | R46: 10 | S46: 1022 | T46: 18 | U46: 126 | V46: 4 | W46: 5 | X46: 6 | Y46: 11 | Z46: 29 | AA46: 42 | AB46: 45 | AC46: 205 | AD46: 1 | AE46: 0 | AF46: 1 | AG46: 6 | AH46: 11 | AI46: 4,868,394,932 | AJ46: 2022-07-02 | AK46: 130 | AL46: 2,332,000 | AM46: 129,556 | AN46: 1,960,000 | AO46: 1 | AP46: 0 | AQ46: 1 | AR46: 8 | AS46: 72
A47: 1144 | B47: 3 | C47: 4 | D47: 12 | E47: 15 | F47: 26 | G47: 34 | H47: 198 | I47: 0 | J47: 0 | K47: 0 | L47: 0 | M47: 3 | R47: 100 | S47: 1004 | T47: 104 | U47: 728 | V47: 24 | W47: 7 | X47: 15 | Y47: 30 | Z47: 37 | AA47: 39 | AB47: 44 | AC47: 303 | AD47: 1 | AE47: 0 | AF47: 2 | AG47: 1 | AH47: 16 | AI47: 2,579,465,399 | AJ47: 2022-02-26 | AK47: 125 | AL47: 12,962,000 | AM47: 124,635 | AN47: 9,285,000 | AO47: 1 | AP47: 0 | AQ47: 5 | AR47: 30 | AS47: 357
A48: 1143 | B48: 10 | C48: 16 | D48: 17 | E48: 27 | F48: 28 | G48: 36 | H48: 609 | I48: 0 | J48: 0 | K48: 0 | L48: 1 | M48: 12 | R48: 40 | S48: 900 | T48: 41 | U48: 287 | V48: 10 | W48: 7 | X48: 13 | Y48: 16 | Z48: 18 | AA48: 35 | AB48: 38 | AC48: 573 | AD48: 1 | AE48: 0 | AF48: 0 | AG48: 8 | AH48: 31 | AI48: 3,350,406,375 | AJ48: 2020-02-29 | AK48: 123 | AL48: 5,004,000 | AM48: 122,049 | AN48: 1,185,000 | AO48: 1 | AP48: 0 | AQ48: 0 | AR48: 13 | AS48: 107
A49: 1142 | B49: 2 | C49: 8 | D49: 28 | E49: 30 | F49: 37 | G49: 41 | H49: 51 | I49: 0 | J49: 0 | K49: 0 | L49: 0 | M49: 5 | R49: 10 | S49: 859 | T49: 18 | U49: 126 | V49: 4 | W49: 8 | X49: 22 | Y49: 35 | Z49: 38 | AA49: 39 | AB49: 41 | AC49: 137 | AD49: 1 | AE49: 0 | AF49: 0 | AG49: 3 | AH49: 8 | AI49: 1,854,117,489 | AJ49: 2019-05-18 | AK49: 119 | AL49: 2,135,000 | AM49: 118,611 | AN49: 530,000 | AO49: 1 | AP49: 0 | AQ49: 0 | AR49: 5 | AS49: 56
A50: 1141 | B50: 7 | C50: 11 | D50: 12 | E50: 21 | F50: 26 | G50: 35 | H50: 298 | I50: 0 | J50: 0 | K50: 0 | L50: 0 | M50: 5 | R50: 20 | S50: 841 | T50: 25 | U50: 175 | V50: 6 | W50: 5 | X50: 11 | Y50: 14 | Z50: 30 | AA50: 33 | AB50: 38 | AC50: 340 | AD50: 1 | AE50: 0 | AF50: 0 | AG50: 4 | AH50: 21 | AI50: 1,116,400,714 | AJ50: 2019-01-12 | AK50: 154 | AL50: 3,832,000 | AM50: 153,280 | AN50: 1,390,000 | AO50: 1 | AP50: 0 | AQ50: 0 | AR50: 14 | AS50: 138
A51: 1140 | B51: 7 | C51: 10 | D51: 22 | E51: 29 | F51: 31 | G51: 38 | H51: 16 | I51: 0 | J51: 0 | K51: 0 | L51: 0 | M51: 0 | R51: 100 | S51: 816 | T51: 101 | U51: 707 | V51: 24 | W51: 12 | X51: 18 | Y51: 19 | Z51: 29 | AA51: 31 | AB51: 39 | AC51: 62 | AD51: 1 | AE51: 0 | AF51: 0 | AG51: 1 | AH51: 7 | AI51: 2,128,192,938 | AJ51: 2017-07-21 | AK51: 136 | AL51: 13,662,000 | AM51: 135,267 | AN51: 6,890,000 | AO51: 1 | AP51: 0 | AQ51: 3 | AR51: 32 | AS51: 338
A52: 1139 | B52: 5 | C52: 12 | D52: 15 | E52: 30 | F52: 37 | G52: 40 | H52: 100 | I52: 0 | J52: 0 | K52: 0 | L52: 0 | M52: 2 | R52: 10 | S52: 715 | T52: 19 | U52: 133 | V52: 4 | W52: 2 | X52: 7 | Y52: 27 | Z52: 33 | AA52: 41 | AB52: 44 | AC52: 243 | AD52: 1 | AE52: 0 | AF52: 1 | AG52: 13 | AH52: 25 | AI52: 2,607,676,528 | AJ52: 2016-08-13 | AK52: 121 | AL52: 2,290,000 | AM52: 120,526 | AN52: 2,440,000 | AO52: 1 | AP52: 0 | AQ52: 1 | AR52: 15 | AS52: 98
A53: 1138 | B53: 14 | C53: 16 | D53: 19 | E53: 20 | F53: 29 | G53: 34 | H53: 66 | I53: 0 | J53: 0 | K53: 0 | L53: 0 | M53: 0 | R53: 40 | S53: 696 | T53: 44 | U53: 308 | V53: 10 | W53: 1 | X53: 7 | Y53: 16 | Z53: 18 | AA53: 34 | AB53: 38 | AC53: 248 | AD53: 1 | AE53: 0 | AF53: 0 | AG53: 2 | AH53: 18 | AI53: 1,632,244,413 | AJ53: 2016-04-02 | AK53: 133 | AL53: 5,817,000 | AM53: 132,205 | AN53: 1,375,000 | AO53: 1 | AP53: 0 | AQ53: 0 | AR53: 12 | AS53: 155
A54: 1137 | B54: 4 | C54: 9 | D54: 12 | E54: 15 | F54: 33 | G54: 45 | H54: 0 | I54: 0 | J54: 0 | K54: 0 | L54: 0 | M54: 0 | R54: 50 | S54: 652 | T54: 59 | U54: 413 | V54: 14 | W54: 3 | X54: 13 | Y54: 15 | Z54: 40 | AA54: 41 | AB54: 44 | AC54: 283 | AD54: 1 | AE54: 0 | AF54: 0 | AG54: 2 | AH54: 10 | AI54: 3,003,633,525 | AJ54: 2015-05-30 | AK54: 118 | AL54: 6,921,000 | AM54: 117,305 | AN54: 1,895,000 | AO54: 1 | AP54: 0 | AQ54: 0 | AR54: 20 | AS54: 179
A55: 1136 | B55: 21 | C55: 33 | D55: 35 | E55: 38 | F55: 42 | G55: 44 | H55: 94 | I55: 0 | J55: 0 | K55: 0 | L55: 0 | M55: 5 | R55: 10 | S55: 593 | T55: 19 | U55: 133 | V55: 4 | W55: 9 | X55: 10 | Y55: 13 | Z55: 24 | AA55: 33 | AB55: 38 | AC55: 351 | AD55: 1 | AE55: 0 | AF55: 0 | AG55: 8 | AH55: 16 | AI55: 1,533,313,500 | AJ55: 2014-04-12 | AK55: 183 | AL55: 3,459,000 | AM55: 182,053 | AN55: 2,460,000 | AO55: 1 | AP55: 0 | AQ55: 1 | AR55: 14 | AS55: 112
A56: 1135 | B56: 1 | C56: 6 | D56: 13 | E56: 19 | F56: 21 | G56: 33 | H56: 0 | I56: 0 | J56: 0 | K56: 0 | L56: 0 | M56: 0 | R56: 50 | S56: 574 | T56: 50 | U56: 350 | V56: 12 | W56: 14 | X56: 15 | Y56: 16 | Z56: 19 | AA56: 25 | AB56: 43 | AC56: 208 | AD56: 1 | AE56: 0 | AF56: 0 | AG56: 2 | AH56: 25 | AI56: 6,965,409,938 | AJ56: 2013-11-30 | AK56: 148 | AL56: 7,359,000 | AM56: 147,180 | AN56: 1,765,000 | AO56: 1 | AP56: 0 | AQ56: 0 | AR56: 16 | AS56: 193
A57: 1134 | B57: 3 | C57: 7 | D57: 9 | E57: 13 | F57: 19 | G57: 24 | H57: 102 | I57: 0 | J57: 0 | K57: 0 | L57: 0 | M57: 1 | R57: 0 | S57: 524 | T57: 1 | U57: 7 | V57: 0 | W57: 10 | X57: 11 | Y57: 29 | Z57: 38 | AA57: 41 | AB57: 45 | AC57: 393 | AD57: 1 | AE57: 0 | AF57: 1 | AG57: 5 | AH57: 24 | AI57: 3,493,805,353 | AJ57: 2012-12-15 | AK57: 393 | AL57: 393,000 | AM57: 393,000 | AN57: 1,570,000 | AO57: 1 | AP57: 0 | AQ57: 1 | AR57: 5 | AS57: 24
A58: 1133 | B58: 13 | C58: 14 | D58: 20 | E58: 28 | F58: 29 | G58: 34 | H58: 137 | I58: 0 | J58: 0 | K58: 0 | L58: 0 | M58: 6 | R58: 60 | S58: 523 | T58: 62 | U58: 434 | V58: 14 | W58: 1 | X58: 4 | Y58: 37 | Z58: 38 | AA58: 40 | AB58: 45 | AC58: 341 | AD58: 1 | AE58: 0 | AF58: 2 | AG58: 3 | AH58: 27 | AI58: 1,783,308,898 | AJ58: 2012-12-08 | AK58: 135 | AL58: 8,335,000 | AM58: 134,435 | AN58: 7,670,000 | AO58: 1 | AP58: 0 | AQ58: 4 | AR58: 33 | AS58: 244
A59: 1132 | B59: 6 | C59: 7 | D59: 19 | E59: 28 | F59: 34 | G59: 41 | H59: 243 | I59: 0 | J59: 0 | K59: 0 | L59: 0 | M59: 5 | R59: 100 | S59: 461 | T59: 105 | U59: 735 | V59: 25 | W59: 11 | X59: 18 | Y59: 26 | Z59: 31 | AA59: 37 | AB59: 40 | AC59: 551 | AD59: 1 | AE59: 0 | AF59: 1 | AG59: 2 | AH59: 29 | AI59: 1,950,054,806 | AJ59: 2011-10-01 | AK59: 121 | AL59: 12,619,000 | AM59: 120,181 | AN59: 4,755,000 | AO59: 1 | AP59: 0 | AQ59: 1 | AR59: 40 | AS59: 311
A60: 1131 | B60: 1 | C60: 2 | D60: 6 | E60: 14 | F60: 27 | G60: 38 | H60: 0 | I60: 0 | J60: 0 | K60: 0 | L60: 0 | M60: 0 | R60: 30 | S60: 356 | T60: 32 | U60: 224 | V60: 7 | W60: 2 | X60: 8 | Y60: 14 | Z60: 25 | AA60: 29 | AB60: 45 | AC60: 463 | AD60: 1 | AE60: 0 | AF60: 1 | AG60: 10 | AH60: 55 | AI60: 1,159,334,597 | AJ60: 2009-09-26 | AK60: 168 | AL60: 5,365,000 | AM60: 167,656 | AN60: 4,565,000 | AO60: 1 | AP60: 0 | AQ60: 2 | AR60: 26 | AS60: 173
A61: =A62+1 -> 1130 | B61: 15 | C61: 19 | D61: 21 | E61: 25 | F61: 27 | G61: 28 | H61: 25 | I61: 0 | J61: 0 | K61: 0 | L61: 0 | M61: 0 | R61: 20 | S61: 324 | T61: 21 | U61: 147 | V61: 5 | W61: 2 | X61: 4 | Y61: 21 | Z61: 25 | AA61: 33 | AB61: 36 | AC61: 164 | AD61: 1 | AE61: 0 | AF61: 0 | AG61: 0 | AH61: 4 | AI61: 1,865,150,350 | AJ61: 2009-02-14 | AK61: 107 | AL61: 2,234,000 | AM61: 106,381 | AN61: 460,000 | AO61: 1 | AP61: 0 | AQ61: 0 | AR61: 3 | AS61: 62
A62: 1129 | B62: 5 | C62: 10 | D62: 11 | E62: 17 | F62: 28 | G62: 34 | H62: 86 | I62: 0 | J62: 0 | K62: 0 | L62: 0 | M62: 0 | R62: 10 | S62: 303 | T62: 14 | U62: 98 | V62: 3 | W62: 2 | X62: 14 | Y62: 17 | Z62: 30 | AA62: 38 | AB62: 45 | AC62: 259 | AD62: 1 | AE62: 0 | AF62: 1 | AG62: 5 | AH62: 24 | AI62: 1,674,563,516 | AJ62: 2008-09-20 | AK62: 125 | AL62: 1,740,000 | AM62: 124,286 | AN62: 2,965,000 | AO62: 1 | AP62: 0 | AQ62: 2 | AR62: 5 | AS62: 63
A63: 1128 | B63: 1 | C63: 5 | D63: 8 | E63: 16 | F63: 28 | G63: 33 | H63: 20 | I63: 0 | J63: 0 | K63: 0 | L63: 0 | M63: 0 | N63: 0 | R63: 140 | S63: 289 | T63: 142 | U63: 994 | V63: 33 | W63: 3 | X63: 14 | Y63: 33 | Z63: 37 | AA63: 38 | AB63: 42 | AC63: 376 | AD63: 1 | AE63: 0 | AF63: 0 | AG63: 6 | AH63: 21 | AI63: 2,011,820,719 | AJ63: 2008-06-14 | AK63: 138 | AL63: 19,494,000 | AM63: 137,282 | AN63: 9,985,000 | AO63: 1 | AP63: 0 | AQ63: 4 | AR63: 57 | AS63: 467
A64: 1127 | B64: 10 | C64: 15 | D64: 24 | E64: 30 | F64: 31 | G64: 37 | H64: 137 | I64: 0 | J64: 0 | K64: 0 | L64: 0 | M64: 3 | N64: 0 | R64: 0 | S64: 147 | T64: 8 | U64: 56 | V64: 2 | W64: 4 | X64: 6 | Y64: 13 | Z64: 21 | AA64: 40 | AB64: 42 | AC64: 303 | AD64: 1 | AE64: 0 | AF64: 0 | AG64: 2 | AH64: 8 | AI64: 1,700,180,215 | AJ64: 2005-09-24 | AK64: 208 | AL64: 1,659,000 | AM64: 207,375 | AN64: 460,000 | AO64: 1 | AP64: 0 | AQ64: 0 | AR64: 5 | AS64: 42
A65: 1126 | B65: 4 | C65: 5 | D65: 9 | E65: 11 | F65: 37 | G65: 40 | H65: 28 | I65: 0 | J65: 0 | K65: 0 | L65: 0 | M65: 0 | N65: 0 | R65: 60 | S65: 139 | T65: 68 | U65: 476 | V65: 16 | W65: 9 | X65: 11 | Y65: 15 | Z65: 20 | AA65: 28 | AB65: 43 | AC65: 712 | AD65: 1 | AE65: 0 | AF65: 0 | AG65: 9 | AH65: 26 | AI65: 1,650,790,215 | AJ65: 2005-07-30 | AK65: 113 | AL65: 7,648,000 | AM65: 112,471 | AN65: 6,405,000 | AO65: 1 | AP65: 0 | AQ65: 3 | AR65: 36 | AS65: 201
A66: 1125 | B66: 6 | C66: 14 | D66: 25 | E66: 33 | F66: 40 | G66: 44 | H66: 30 | I66: 0 | J66: 0 | K66: 0 | L66: 0 | M66: 0 | N66: 0 | R66: 70 | S66: 71 | T66: 71 | U66: 497 | V66: 17 | W66: 5 | X66: 9 | Y66: 12 | Z66: 16 | AA66: 29 | AB66: 41 | AC66: 447 | AD66: 1 | AE66: 0 | AF66: 1 | AG66: 0 | AH66: 17 | AI66: 5,003,262,500 | AJ66: 2004-04-10 | AK66: 103 | AL66: 7,312,000 | AM66: 102,986 | AN66: 5,775,000 | AO66: 1 | AP66: 0 | AQ66: 3 | AR66: 22 | AS66: 215
A67: 1124 | B67: 3 | C67: 8 | D67: 17 | E67: 30 | F67: 33 | G67: 34 | H67: 111 | I67: 0 | J67: 0 | K67: 0 | L67: 0 | M67: 2 | N67: 0 | S67: 22 회 | T67: 47.5 | U67: 332.8 | V67: 11.1 | W67: 5.9 | X67: 11.5 | Y67: 20.6 | Z67: 28.4 | AA67: 35.5 | AB67: 41.5 | AC67: 329.5 | AD67: 1.0 | AE67: 0.0 | AF67: 0.5 | AG67: 4.3 | AH67: 19.6 | AI67: 2,542,869,665 | AJ67: 2024-11-16 (예상) | AK67: 146.0 | AL67: 6,147,818 | AM67: 145,472 | AN67: 3,526,591 | AO67: 1.0 | AP67: 0.0 | AQ67: 1.5 | AR67: 19.0 | AS67: 166.7
A68: 1123 | B68: 13 | C68: 19 | D68: 21 | E68: 24 | F68: 34 | G68: 35 | H68: 38 | I68: 0 | J68: 0 | K68: 0 | L68: 0 | M68: 0 | N68: 0
A69: 1122 | B69: 3 | C69: 6 | D69: 21 | E69: 30 | F69: 34 | G69: 35 | H69: 22 | I69: 0 | J69: 0 | K69: 0 | L69: 0 | M69: 1 | N69: 0 | Q69: 최대-현재 | R69: 최초시작일 | S69: NO | T69: WEEKS | U69: DAYS | V69: MONTH | W69: 추천 정보 | AK69: 누적지출 정보
A70: 1121 | B70: 6 | C70: 24 | D70: 31 | E70: 32 | F70: 38 | G70: 44 | H70: 63 | I70: 0 | J70: 0 | K70: 0 | L70: 0 | M70: 2 | N70: 0 | W70: b1 | X70: b2 | Y70: b3 | Z70: b4 | AA70: b5 | AB70: b6 | AC70: 추천개수 | AD70: 1등 | AE70: 2등 | AF70: 3등 | AG70: 4등 | AH70: 5등 | AI70: 당첨금 | AJ70: 당첨일 | AK70: 평균추천개수 | AL70: 총비용 | AM70: 게임당 비용 | AN70: 당첨금 (1등제외) | AO70: 1등 | AP70: 2등 | AQ70: 3등 | AR70: 4등 | AS70: 5등
A71: 1120 | B71: 2 | C71: 19 | D71: 26 | E71: 31 | F71: 38 | G71: 41 | H71: 39 | I71: 0 | J71: 0 | K71: 0 | L71: 0 | M71: 0 | N71: 0 | Q71: =MAX(T72:T96)-T71 -> (39) | R71: 2024-06-29 | S71: 1189 | T71: =S71-S72 -> 143 | U71: =T71*7 -> 1,001 | V71: =U71/30 -> 33 | W71: … | X71: … | Y71: … | Z71: … | AA71: … | AB71: … | AC71: 154 | AD71: … | AE71: … | AF71: … | AG71: … | AH71: … | AI71: 55,943,132,639 | AJ71: 2025-09-06 (예상) | AK71: 106 | AL71: 8,296,000 | AM71: 103,700 | AN71: 4,175,000 | AO71: 0 | AP71: 0 | AQ71: 2 | AR71: 16 | AS71: 195
A72: 1119 | B72: 1 | C72: 9 | D72: 12 | E72: 13 | F72: 20 | G72: 45 | H72: 11 | I72: 0 | J72: 0 | K72: 0 | L72: 0 | M72: 0 | N72: 0 | R72: 20 | S72: 1046 | T72: =S72-S73 -> 24 | U72: =T72*7 -> 168 | V72: =U72/30 -> 6 | W72: 7 | X72: 16 | Y72: 25 | Z72: 29 | AA72: 35 | AB72: 36 | AC72: 203 | AD72: 1 | AE72: 0 | AF72: 0 | AG72: 3 | AH72: 8 | AI72: 2,011,605,719 | AJ72: 2022-12-17 | AK72: 112 | AL72: 2,680,000 | AM72: 111,667 | AN72: 1,800,000 | AO72: 1 | AP72: 0 | AQ72: 1 | AR72: 6 | AS72: 60
A73: 1118 | B73: 11 | C73: 13 | D73: 14 | E73: 15 | F73: 16 | G73: 45 | H73: 6 | I73: 0 | J73: 0 | K73: 0 | L73: 0 | M73: 0 | N73: 0 | R73: 10 | S73: 1022 | T73: =S73-S74 -> 18 | U73: =T73*7 -> 126 | V73: =U73/30 -> 4 | W73: 5 | X73: 6 | Y73: 11 | Z73: 29 | AA73: 42 | AB73: 45 | AC73: 265 | AD73: 1 | AE73: 0 | AF73: 1 | AG73: 6 | AH73: 11 | AI73: 4,868,394,932 | AJ73: 2022-07-02 | AK73: 130 | AL73: 2,332,000 | AM73: 129,556 | AN73: 1,960,000 | AO73: 1 | AP73: 0 | AQ73: 1 | AR73: 8 | AS73: 72
A74: 1117 | B74: 3 | C74: 4 | D74: 9 | E74: 30 | F74: 33 | G74: 36 | H74: 8 | I74: 0 | J74: 0 | K74: 0 | L74: 0 | M74: 2 | N74: 0 | R74: 100 | S74: 1004 | T74: 104 | U74: 728 | V74: 24 | W74: 7 | X74: 15 | Y74: 30 | Z74: 37 | AA74: 39 | AB74: 44 | AC74: 272 | AD74: 1 | AE74: 0 | AF74: 2 | AG74: 1 | AH74: 16 | AI74: 2,579,465,399 | AJ74: 2022-02-26 | AK74: 125 | AL74: 12,962,000 | AM74: 124,635 | AN74: 9,285,000 | AO74: 1 | AP74: 0 | AQ74: 5 | AR74: 30 | AS74: 357
A75: 1116 | B75: 15 | C75: 16 | D75: 17 | E75: 25 | F75: 30 | G75: 31 | H75: 0 | I75: 0 | J75: 0 | K75: 0 | L75: 0 | M75: 0 | N75: 0 | R75: 40 | S75: 900 | T75: 41 | U75: 287 | V75: 10 | W75: 7 | X75: 13 | Y75: 16 | Z75: 18 | AA75: 35 | AB75: 38 | AC75: 559 | AD75: 1 | AE75: 0 | AF75: 0 | AG75: 8 | AH75: 31 | AI75: 3,350,406,375 | AJ75: 2020-02-29 | AK75: 123 | AL75: 5,004,000 | AM75: 122,049 | AN75: 1,185,000 | AO75: 1 | AP75: 0 | AQ75: 0 | AR75: 13 | AS75: 107
A76: 1115 | B76: 7 | C76: 12 | D76: 23 | E76: 32 | F76: 34 | G76: 36 | H76: 17 | I76: 0 | J76: 0 | K76: 0 | L76: 0 | M76: 0 | N76: 0 | R76: 10 | S76: 859 | T76: 18 | U76: 126 | V76: 4 | W76: 8 | X76: 22 | Y76: 35 | Z76: 38 | AA76: 39 | AB76: 41 | AC76: 102 | AD76: 1 | AE76: 0 | AF76: 0 | AG76: 3 | AH76: 8 | AI76: 1,854,117,489 | AJ76: 2019-05-18 | AK76: 119 | AL76: 2,135,000 | AM76: 118,611 | AN76: 530,000 | AO76: 1 | AP76: 0 | AQ76: 0 | AR76: 5 | AS76: 56
A77: 1114 | B77: 10 | C77: 16 | D77: 19 | E77: 32 | F77: 33 | G77: 38 | H77: 53 | I77: 0 | J77: 0 | K77: 0 | L77: 0 | M77: 3 | N77: 0 | R77: 20 | S77: 841 | T77: 25 | U77: 175 | V77: 6 | W77: 5 | X77: 11 | Y77: 14 | Z77: 30 | AA77: 33 | AB77: 38 | AC77: 353 | AD77: 1 | AE77: 0 | AF77: 0 | AG77: 4 | AH77: 21 | AI77: 1,116,400,714 | AJ77: 2019-01-12 | AK77: 154 | AL77: 3,832,000 | AM77: 153,280 | AN77: 1,390,000 | AO77: 1 | AP77: 0 | AQ77: 0 | AR77: 14 | AS77: 138
A78: 1113 | B78: 11 | C78: 13 | D78: 20 | E78: 21 | F78: 32 | G78: 44 | H78: 6 | I78: 0 | J78: 0 | K78: 0 | L78: 0 | M78: 0 | N78: 0 | R78: 100 | S78: 816 | T78: 101 | U78: 707 | V78: 24 | W78: 12 | X78: 18 | Y78: 19 | Z78: 29 | AA78: 31 | AB78: 39 | AC78: 42 | AD78: 1 | AE78: 0 | AF78: 0 | AG78: 1 | AH78: 7 | AI78: 2,128,192,938 | AJ78: 2017-07-21 | AK78: 136 | AL78: 13,662,000 | AM78: 135,267 | AN78: 6,890,000 | AO78: 1 | AP78: 0 | AQ78: 3 | AR78: 32 | AS78: 338
A79: 1112 | B79: 16 | C79: 20 | D79: 26 | E79: 36 | F79: 42 | G79: 44 | H79: 3 | I79: 0 | J79: 0 | K79: 0 | L79: 0 | M79: 1 | N79: 0 | R79: 10 | S79: 715 | T79: 19 | U79: 133 | V79: 4 | W79: 2 | X79: 7 | Y79: 27 | Z79: 33 | AA79: 41 | AB79: 44 | AC79: 205 | AD79: 1 | AE79: 0 | AF79: 1 | AG79: 13 | AH79: 25 | AI79: 2,607,676,528 | AJ79: 2016-08-13 | AK79: 121 | AL79: 2,290,000 | AM79: 120,526 | AN79: 2,440,000 | AO79: 1 | AP79: 0 | AQ79: 1 | AR79: 15 | AS79: 98
A80: 1111 | B80: 3 | C80: 13 | D80: 30 | E80: 33 | F80: 43 | G80: 45 | H80: 72 | I80: 0 | J80: 0 | K80: 0 | L80: 0 | M80: 3 | N80: 0 | R80: 40 | S80: 696 | T80: 44 | U80: 308 | V80: 10 | W80: 1 | X80: 7 | Y80: 16 | Z80: 18 | AA80: 34 | AB80: 38 | AC80: 249 | AD80: 1 | AE80: 0 | AF80: 0 | AG80: 2 | AH80: 18 | AI80: 1,632,244,413 | AJ80: 2016-04-02 | AK80: 133 | AL80: 5,817,000 | AM80: 132,205 | AN80: 1,375,000 | AO80: 1 | AP80: 0 | AQ80: 0 | AR80: 12 | AS80: 155
A81: 1110 | B81: 3 | C81: 7 | D81: 11 | E81: 20 | F81: 22 | G81: 41 | H81: 41 | I81: 0 | J81: 0 | K81: 0 | L81: 0 | M81: 2 | N81: 0 | R81: 50 | S81: 652 | T81: 59 | U81: 413 | V81: 14 | W81: 3 | X81: 13 | Y81: 15 | Z81: 40 | AA81: 41 | AB81: 44 | AC81: 308 | AD81: 1 | AE81: 0 | AF81: 0 | AG81: 2 | AH81: 10 | AI81: 3,003,633,525 | AJ81: 2015-05-30 | AK81: 118 | AL81: 6,921,000 | AM81: 117,305 | AN81: 1,895,000 | AO81: 1 | AP81: 0 | AQ81: 0 | AR81: 20 | AS81: 179
A82: 1109 | B82: 10 | C82: 12 | D82: 13 | E82: 19 | F82: 33 | G82: 40 | H82: 23 | I82: 0 | J82: 0 | K82: 0 | L82: 0 | M82: 0 | N82: 0 | R82: 10 | S82: 593 | T82: 19 | U82: 133 | V82: 4 | W82: 9 | X82: 10 | Y82: 13 | Z82: 24 | AA82: 33 | AB82: 38 | AC82: 332 | AD82: 1 | AE82: 0 | AF82: 0 | AG82: 8 | AH82: 16 | AI82: 1,533,313,500 | AJ82: 2014-04-12 | AK82: 183 | AL82: 3,459,000 | AM82: 182,053 | AN82: 2,460,000 | AO82: 1 | AP82: 0 | AQ82: 1 | AR82: 14 | AS82: 112
A83: 1108 | B83: 7 | C83: 19 | D83: 26 | E83: 37 | F83: 39 | G83: 44 | H83: 10 | I83: 0 | J83: 0 | K83: 0 | L83: 0 | M83: 0 | N83: 0 | R83: 50 | S83: 574 | T83: 50 | U83: 350 | V83: 12 | W83: 14 | X83: 15 | Y83: 16 | Z83: 19 | AA83: 25 | AB83: 43 | AC83: 224 | AD83: 1 | AE83: 0 | AF83: 0 | AG83: 2 | AH83: 25 | AI83: 6,965,409,938 | AJ83: 2013-11-30 | AK83: 148 | AL83: 7,359,000 | AM83: 147,180 | AN83: 1,765,000 | AO83: 1 | AP83: 0 | AQ83: 0 | AR83: 16 | AS83: 193
A84: 1107 | B84: 6 | C84: 14 | D84: 30 | E84: 31 | F84: 40 | G84: 41 | H84: 172 | I84: 0 | J84: 0 | K84: 0 | L84: 1 | M84: 5 | N84: 0 | R84: 0 | S84: 524 | T84: 1 | U84: 7 | V84: 0 | W84: 10 | X84: 11 | Y84: 29 | Z84: 38 | AA84: 41 | AB84: 45 | AC84: 331 | AD84: 1 | AE84: 0 | AF84: 1 | AG84: 5 | AH84: 24 | AI84: 3,493,805,353 | AJ84: 2012-12-15 | AK84: 393 | AL84: 393,000 | AM84: 393,000 | AN84: 1,570,000 | AO84: 1 | AP84: 0 | AQ84: 1 | AR84: 5 | AS84: 24
A85: 1106 | B85: 1 | C85: 3 | D85: 4 | E85: 29 | F85: 42 | G85: 45 | H85: 80 | I85: 0 | J85: 0 | K85: 0 | L85: 0 | M85: 0 | N85: 0 | R85: 60 | S85: 523 | T85: 54 | U85: 378 | V85: 13 | W85: 1 | X85: 4 | Y85: 37 | Z85: 38 | AA85: 40 | AB85: 45 | AC85: 349 | AD85: 1 | AE85: 0 | AF85: 2 | AG85: 3 | AH85: 27 | AI85: 1,783,308,898 | AJ85: 2012-12-08 | AK85: 135 | AL85: 8,335,000 | AM85: 134,435 | AN85: 7,670,000 | AO85: 1 | AP85: 0 | AQ85: 4 | AR85: 33 | AS85: 244
A86: 1105 | B86: 6 | C86: 16 | D86: 34 | E86: 37 | F86: 39 | G86: 40 | H86: 31 | I86: 0 | J86: 0 | K86: 0 | L86: 0 | M86: 1 | N86: 0 | R86: 100 | S86: 469 | T86: 8 | U86: 56 | V86: 2 | W86: 4 | X86: 21 | Y86: 22 | Z86: 34 | AA86: 37 | AB86: 38 | AC86: 280 | AD86: 1 | AE86: 0 | AF86: 1 | AG86: 2 | AH86: 29 | AI86: 1,950,054,806 | AJ86: 2011-10-01 | AK86: 121 | AL86: 12,619,000 | AM86: 120,181 | AN86: 4,755,000 | AO86: 1 | AP86: 0 | AQ86: 1 | AR86: 40 | AS86: 311
A87: 1104 | B87: 1 | C87: 7 | D87: 21 | E87: 30 | F87: 35 | G87: 38 | H87: 78 | I87: 0 | J87: 0 | K87: 0 | L87: 0 | M87: 1 | N87: 0 | R87: 100 | S87: 461 | T87: 35 | U87: 245 | V87: 8 | W87: 11 | X87: 18 | Y87: 26 | Z87: 31 | AA87: 37 | AB87: 40 | AC87: 547 | AD87: 1 | AE87: 0 | AF87: 1 | AG87: 2 | AH87: 29 | AI87: 1,950,054,806 | AJ87: 2011-10-01 | AK87: 121 | AL87: 12,619,000 | AM87: 120,181 | AN87: 4,755,000 | AO87: 1 | AP87: 0 | AQ87: 1 | AR87: 40 | AS87: 311
A88: 1103 | B88: 10 | C88: 12 | D88: 29 | E88: 31 | F88: 40 | G88: 44 | H88: 69 | I88: 0 | J88: 0 | K88: 0 | L88: 1 | M88: 1 | N88: 0 | R88: 30 | S88: 426 | T88: 70 | U88: 490 | V88: 16 | W88: 4 | X88: 17 | Y88: 18 | Z88: 27 | AA88: 39 | AB88: 43 | AC88: 418 | AD88: 1 | AE88: 0 | AF88: 1 | AG88: 10 | AH88: 55 | AI88: 1,159,334,597 | AJ88: 2009-09-26 | AK88: 168 | AL88: 5,365,000 | AM88: 167,656 | AN88: 4,565,000 | AO88: 1 | AP88: 0 | AQ88: 2 | AR88: 26 | AS88: 173
A89: 1102 | B89: 13 | C89: 14 | D89: 22 | E89: 26 | F89: 37 | G89: 38 | H89: 10 | I89: 0 | J89: 0 | K89: 0 | L89: 0 | M89: 0 | N89: 0 | R89: 30 | S89: 356 | T89: 32 | U89: 224 | V89: 7 | W89: 2 | X89: 8 | Y89: 14 | Z89: 25 | AA89: 29 | AB89: 45 | AC89: 356 | AD89: 1 | AE89: 0 | AF89: 1 | AG89: 10 | AH89: 55 | AI89: 1,159,334,597 | AJ89: 2009-09-26 | AK89: 168 | AL89: 5,365,000 | AM89: 167,656 | AN89: 4,565,000 | AO89: 1 | AP89: 0 | AQ89: 2 | AR89: 26 | AS89: 173
A90: 1101 | B90: 6 | C90: 7 | D90: 13 | E90: 28 | F90: 36 | G90: 42 | H90: 74 | I90: 0 | J90: 0 | K90: 0 | L90: 0 | M90: 1 | N90: 0 | R90: 20 | S90: 324 | T90: 21 | U90: 147 | V90: 5 | W90: 2 | X90: 4 | Y90: 21 | Z90: 25 | AA90: 33 | AB90: 36 | AC90: 170 | AD90: 1 | AE90: 0 | AF90: 0 | AG90: 0 | AH90: 4 | AI90: 1,865,150,350 | AJ90: 2009-02-14 | AK90: 107 | AL90: 2,234,000 | AM90: 106,381 | AN90: 460,000 | AO90: 1 | AP90: 0 | AQ90: 0 | AR90: 3 | AS90: 62
A91: 1100 | B91: 17 | C91: 26 | D91: 29 | E91: 30 | F91: 31 | G91: 43 | H91: 7 | I91: 0 | J91: 0 | K91: 0 | L91: 0 | M91: 0 | N91: 0 | R91: 10 | S91: 303 | T91: 14 | U91: 98 | V91: 3 | W91: 2 | X91: 14 | Y91: 17 | Z91: 30 | AA91: 38 | AB91: 45 | AC91: 176 | AD91: 1 | AE91: 0 | AF91: 1 | AG91: 5 | AH91: 24 | AI91: 1,674,563,516 | AJ91: 2008-09-20 | AK91: 125 | AL91: 1,740,000 | AM91: 124,286 | AN91: 2,965,000 | AO91: 1 | AP91: 0 | AQ91: 2 | AR91: 5 | AS91: 63
A92: 1099 | B92: 3 | C92: 20 | D92: 28 | E92: 38 | F92: 40 | G92: 43 | H92: 52 | I92: 0 | J92: 0 | K92: 0 | L92: 0 | M92: 3 | N92: 0 | R92: 140 | S92: 289 | T92: 44 | U92: 308 | V92: 10 | W92: 3 | X92: 14 | Y92: 33 | Z92: 37 | AA92: 38 | AB92: 42 | AC92: 368 | AD92: 1 | AE92: 0 | AF92: 0 | AG92: 6 | AH92: 21 | AI92: 2,011,820,719 | AJ92: 2008-06-14 | AK92: 138 | AL92: 19,494,000 | AM92: 137,282 | AN92: 9,985,000 | AO92: 1 | AP92: 0 | AQ92: 4 | AR92: 57 | AS92: 467
A93: 1098 | B93: 12 | C93: 16 | D93: 21 | E93: 24 | F93: 41 | G93: 43 | H93: 17 | I93: 0 | J93: 0 | K93: 0 | L93: 0 | M93: 1 | N93: 0 | R93: 0 | S93: 245 | T93: 98 | U93: 686 | V93: 23 | W93: 9 | X93: 11 | Y93: 27 | Z93: 31 | AA93: 32 | AB93: 38 | AC93: 333 | AD93: 1 | AE93: 0 | AF93: 0 | AG93: 2 | AH93: 8 | AI93: 1,700,180,215 | AJ93: 2005-09-24 | AK93: 208 | AL93: 1,659,000 | AM93: 207,375 | AN93: 460,000 | AO93: 1 | AP93: 0 | AQ93: 0 | AR93: 5 | AS93: 42
A94: 1097 | B94: 14 | C94: 33 | D94: 34 | E94: 35 | F94: 37 | G94: 40 | H94: 0 | I94: 0 | J94: 0 | K94: 0 | L94: 0 | M94: 0 | N94: 0 | R94: 0 | S94: 147 | T94: 8 | U94: 56 | V94: 2 | W94: 4 | X94: 6 | Y94: 13 | Z94: 21 | AA94: 40 | AB94: 42 | AC94: 305 | AD94: 1 | AE94: 0 | AF94: 0 | AG94: 2 | AH94: 8 | AI94: 1,700,180,215 | AJ94: 2005-09-24 | AK94: 208 | AL94: 1,659,000 | AM94: 207,375 | AN94: 460,000 | AO94: 1 | AP94: 0 | AQ94: 0 | AR94: 5 | AS94: 42
A95: 1096 | B95: 1 | C95: 12 | D95: 16 | E95: 19 | F95: 23 | G95: 43 | H95: 35 | I95: 0 | J95: 0 | K95: 0 | L95: 0 | M95: 0 | N95: 0 | R95: 60 | S95: 139 | T95: 68 | U95: 476 | V95: 16 | W95: 9 | X95: 11 | Y95: 15 | Z95: 20 | AA95: 28 | AB95: 43 | AC95: 640 | AD95: 1 | AE95: 0 | AF95: 0 | AG95: 9 | AH95: 26 | AI95: 1,650,790,215 | AJ95: 2005-07-30 | AK95: 113 | AL95: 7,648,000 | AM95: 112,471 | AN95: 6,405,000 | AO95: 1 | AP95: 0 | AQ95: 3 | AR95: 36 | AS95: 201
A96: 1095 | B96: 8 | C96: 14 | D96: 28 | E96: 29 | F96: 34 | G96: 40 | H96: 160 | I96: 0 | J96: 0 | K96: 0 | L96: 0 | M96: 3 | N96: 0 | R96: 70 | S96: 71 | T96: 71 | U96: 497 | V96: 17 | W96: 5 | X96: 9 | Y96: 12 | Z96: 16 | AA96: 29 | AB96: 41 | AC96: 399 | AD96: 1 | AE96: 0 | AF96: 1 | AG96: 0 | AH96: 17 | AI96: 5,003,262,500 | AJ96: 2004-04-10 | AK96: 103 | AL96: 7,312,000 | AM96: 102,986 | AN96: 5,775,000 | AO96: 1 | AP96: 0 | AQ96: 3 | AR96: 22 | AS96: 215
A97: 1094 | B97: 6 | C97: 7 | D97: 15 | E97: 22 | F97: 26 | G97: 40 | H97: 34 | I97: 0 | J97: 0 | K97: 0 | L97: 0 | M97: 6 | N97: 0 | S97: =COUNT(S72:S96) & "번" -> 25번 | T97: =AVERAGE(T72:T96) -> 41.8 | U97: =AVERAGE(U72:U96) -> 292.9 | V97: =AVERAGE(V72:V96) -> 9.8 | W97: 5.8 | X97: 12.0 | Y97: 20.8 | Z97: 28.7 | AA97: 35.6 | AB97: 41.2 | AC97: 311.4 | AD97: 1.0 | AE97: 0.0 | AF97: 0.5 | AG97: 4.4 | AH97: 20.9 | AI97: 2430108090.3 | AJ97: 2024-11-16 (예상) | AK97: =AVERAGE(AK72:AK96) -> 148.4 | AL97: 6195800.0 | AM97: 147823.9 | AN97: 3494600.0 | AO97: 1.0 | AP97: 0.0 | AQ97: 1.4 | AR97: 19.5 | AS97: 167.7
A98: 1093 | B98: 10 | C98: 17 | D98: 22 | E98: 30 | F98: 35 | G98: 43 | H98: 119 | I98: 0 | J98: 0 | K98: 0 | L98: 0 | M98: 3 | N98: 0
A99: 1092 | B99: 7 | C99: 18 | D99: 19 | E99: 26 | F99: 33 | G99: 45 | H99: 0 | I99: 0 | J99: 0 | K99: 0 | L99: 0 | M99: 0 | N99: 0
A100: 1091 | B100: 6 | C100: 20 | D100: 23 | E100: 24 | F100: 28 | G100: 30 | H100: 236 | I100: 0 | J100: 0 | K100: 0 | L100: 0 | M100: 0 | N100: 0
A101: 1090 | B101: 12 | C101: 19 | D101: 21 | E101: 29 | F101: 40 | G101: 45 | H101: 60 | I101: 0 | J101: 0 | K101: 0 | L101: 0 | M101: 6 | N101: 0 | Q101: 최대-현재 | R101: 최초시작일 | S101: NO | T101: WEEKS | U101: DAYS | V101: MONTH | W101: 추천 정보
A102: 1089 | B102: 4 | C102: 18 | D102: 31 | E102: 37 | F102: 42 | G102: 43 | H102: 0 | I102: 0 | J102: 0 | K102: 0 | L102: 0 | M102: 0 | N102: 0 | W102: b1 | X102: b2 | Y102: b3 | Z102: b4 | AA102: b5 | AB102: b6 | AC102: 추천개수 | AD102: 1등 | AE102: 2등 | AF102: 3등 | AG102: 4등 | AH102: 5등 | AI102: 당첨금 | AJ102: 당첨일
A103: 1088 | B103: 11 | C103: 21 | D103: 22 | E103: 30 | F103: 39 | G103: 44 | H103: 103 | I103: 0 | J103: 0 | K103: 0 | L103: 0 | M103: 6 | N103: 0 | Q103: =MAX(T104:T128)-T103 -> (4) | R103: 2024-06-29 | S103: 1209 | T103: =S103-S104 -> 152 | U103: =T103*7 -> 1,064 | V103: =U103/30 -> 35 | W103: … | X103: … | Y103: … | Z103: … | AA103: … | AB103: … | AC103: 154 | AD103: … | AE103: … | AF103: … | AG103: … | AH103: … | AI103: 55,943,132,639 | AJ103: 2025-09-06 (예상)
A104: 1087 | B104: 13 | C104: 14 | D104: 18 | E104: 21 | F104: 34 | G104: 44 | H104: 119 | I104: 0 | J104: 0 | K104: 0 | L104: 1 | M104: 2 | N104: 0 | S104: 1057 | T104: =S104-S105 -> 11 | U104: =T104*7 -> 77 | V104: =U104/30 -> 3 | W104: 8 | X104: 13 | Y104: 19 | Z104: 27 | AA104: 40 | AB104: 45
A105: 1086 | B105: 11 | C105: 16 | D105: 25 | E105: 27 | F105: 35 | G105: 36 | H105: 22 | I105: 0 | J105: 0 | K105: 0 | L105: 0 | M105: 0 | N105: 0 | S105: 1046 | T105: 24 | U105: 168 | V105: 6 | W105: 7 | X105: 16 | Y105: 25 | Z105: 29 | AA105: 35 | AB105: 36
A106: 1085 | B106: 4 | C106: 7 | D106: 17 | E106: 18 | F106: 38 | G106: 44 | H106: 72 | I106: 0 | J106: 0 | K106: 0 | L106: 0 | M106: 4 | N106: 0 | S106: 1022 | T106: 122 | U106: 854 | V106: 28 | W106: 5 | X106: 6 | Y106: 11 | Z106: 29 | AA106: 42 | AB106: 45
A107: 1084 | B107: 8 | C107: 12 | D107: 13 | E107: 29 | F107: 33 | G107: 42 | H107: 52 | I107: 0 | J107: 0 | K107: 0 | L107: 0 | M107: 1 | N107: 0 | S107: 900 | T107: 59 | U107: 413 | V107: 14 | W107: 7 | X107: 13 | Y107: 16 | Z107: 18 | AA107: 35 | AB107: 38
A108: 1083 | B108: 3 | C108: 7 | D108: 14 | E108: 15 | F108: 22 | G108: 38 | H108: 32 | I108: 0 | J108: 0 | K108: 0 | L108: 0 | M108: 0 | N108: 0 | S108: 841 | T108: 25 | U108: 175 | V108: 6 | W108: 5 | X108: 11 | Y108: 14 | Z108: 30 | AA108: 33 | AB108: 38
A109: 1082 | B109: 21 | C109: 26 | D109: 27 | E109: 32 | F109: 34 | G109: 42 | H109: 0 | I109: 0 | J109: 0 | K109: 0 | L109: 0 | M109: 0 | N109: 0 | S109: 816 | T109: 120 | U109: 840 | V109: 28 | W109: 12 | X109: 18 | Y109: 19 | Z109: 29 | AA109: 31 | AB109: 39
A110: 1081 | B110: 1 | C110: 9 | D110: 16 | E110: 23 | F110: 24 | G110: 38 | H110: 0 | I110: 0 | J110: 0 | K110: 0 | L110: 0 | M110: 0 | N110: 0 | S110: 696 | T110: 103 | U110: 721 | V110: 24 | W110: 1 | X110: 7 | Y110: 16 | Z110: 18 | AA110: 34 | AB110: 38
A111: 1080 | B111: 13 | C111: 16 | D111: 23 | E111: 31 | F111: 36 | G111: 44 | H111: 18 | I111: 0 | J111: 0 | K111: 0 | L111: 0 | M111: 0 | N111: 0 | S111: 593 | T111: 19 | U111: 133 | V111: 4 | W111: 9 | X111: 10 | Y111: 13 | Z111: 24 | AA111: 33 | AB111: 38
A112: 1079 | B112: 4 | C112: 8 | D112: 18 | E112: 24 | F112: 37 | G112: 45 | H112: 59 | I112: 0 | J112: 0 | K112: 0 | L112: 0 | M112: 1 | N112: 0 | S112: 574 | T112: 148 | U112: 1,036 | V112: 35 | W112: 14 | X112: 15 | Y112: 16 | Z112: 19 | AA112: 25 | AB112: 43
A113: 1078 | B113: 6 | C113: 10 | D113: 11 | E113: 14 | F113: 36 | G113: 38 | H113: 43 | I113: 0 | J113: 0 | K113: 0 | L113: 0 | M113: 0 | N113: 0 | S113: 426 | T113: 70 | U113: 490 | V113: 16 | W113: 4 | X113: 17 | Y113: 18 | Z113: 27 | AA113: 39 | AB113: 43
A114: 1077 | B114: 4 | C114: 8 | D114: 17 | E114: 30 | F114: 40 | G114: 43 | H114: 5 | I114: 0 | J114: 0 | K114: 0 | L114: 0 | M114: 0 | N114: 0 | S114: 356 | T114: 32 | U114: 224 | V114: 7 | W114: 2 | X114: 8 | Y114: 14 | Z114: 25 | AA114: 29 | AB114: 45
A115: 1076 | B115: 3 | C115: 7 | D115: 9 | E115: 33 | F115: 36 | G115: 37 | H115: 0 | I115: 0 | J115: 0 | K115: 0 | L115: 0 | M115: 0 | N115: 0 | S115: 324 | T115: 21 | U115: 147 | V115: 5 | W115: 2 | X115: 4 | Y115: 21 | Z115: 25 | AA115: 33 | AB115: 36
A116: 1075 | B116: 1 | C116: 23 | D116: 24 | E116: 35 | F116: 44 | G116: 45 | H116: 121 | I116: 0 | J116: 0 | K116: 0 | L116: 0 | M116: 0 | N116: 0 | S116: 303 | T116: 58 | U116: 406 | V116: 14 | W116: 2 | X116: 14 | Y116: 17 | Z116: 30 | AA116: 38 | AB116: 45
A117: 1074 | B117: 1 | C117: 6 | D117: 20 | E117: 27 | F117: 28 | G117: 41 | H117: 5 | I117: 0 | J117: 0 | K117: 0 | L117: 0 | M117: 0 | N117: 0 | S117: 245 | T117: 98 | U117: 686 | V117: 23 | W117: 9 | X117: 11 | Y117: 27 | Z117: 31 | AA117: 32 | AB117: 38
A118: 1073 | B118: 6 | C118: 18 | D118: 28 | E118: 30 | F118: 32 | G118: 38 | H118: 0 | I118: 0 | J118: 0 | K118: 0 | L118: 0 | M118: 0 | N118: 0 | S118: 147 | T118: 8 | U118: 56 | V118: 2 | W118: 4 | X118: 6 | Y118: 13 | Z118: 21 | AA118: 40 | AB118: 42
A119: 1072 | B119: 16 | C119: 18 | D119: 20 | E119: 23 | F119: 32 | G119: 43 | H119: 10 | I119: 0 | J119: 0 | K119: 0 | L119: 0 | M119: 0 | N119: 0 | S119: 139 | T119: 68 | U119: 476 | V119: 16 | W119: 9 | X119: 11 | Y119: 15 | Z119: 20 | AA119: 28 | AB119: 43
A120: 1071 | B120: 1 | C120: 2 | D120: 11 | E120: 21 | F120: 30 | G120: 35 | H120: 4 | I120: 0 | J120: 0 | K120: 0 | L120: 0 | M120: 0 | N120: 0 | S120: 71 | T120: 70 | U120: 490 | V120: 16 | W120: 5 | X120: 9 | Y120: 12 | Z120: 16 | AA120: 29 | AB120: 41
A121: 1070 | B121: 3 | C121: 6 | D121: 14 | E121: 22 | F121: 30 | G121: 41 | H121: 13 | I121: 0 | J121: 0 | K121: 0 | L121: 0 | M121: 0 | N121: 0 | S121: 1
A122: 1069 | B122: 1 | C122: 10 | D122: 18 | E122: 22 | F122: 28 | G122: 31 | H122: 72 | I122: 0 | J122: 0 | K122: 0 | L122: 0 | M122: 4 | N122: 0
A123: 1068 | B123: 4 | C123: 7 | D123: 19 | E123: 26 | F123: 33 | G123: 35 | H123: 0 | I123: 0 | J123: 0 | K123: 0 | L123: 0 | M123: 0 | N123: 0
A124: 1067 | B124: 7 | C124: 10 | D124: 19 | E124: 23 | F124: 28 | G124: 33 | H124: 12 | I124: 0 | J124: 0 | K124: 0 | L124: 0 | M124: 0 | N124: 0
A125: 1066 | B125: 6 | C125: 11 | D125: 16 | E125: 19 | F125: 21 | G125: 32 | H125: 0 | I125: 0 | J125: 0 | K125: 0 | L125: 0 | M125: 0 | N125: 0
A126: 1065 | B126: 3 | C126: 18 | D126: 19 | E126: 23 | F126: 32 | G126: 45 | H126: 34 | I126: 0 | J126: 0 | K126: 0 | L126: 0 | M126: 1 | N126: 0
A127: 1064 | B127: 3 | C127: 6 | D127: 9 | E127: 18 | F127: 22 | G127: 35 | H127: 0 | I127: 0 | J127: 0 | K127: 0 | L127: 0 | M127: 0 | N127: 0
A128: 1063 | B128: 3 | C128: 6 | D128: 22 | E128: 23 | F128: 24 | G128: 38 | H128: 0 | I128: 0 | J128: 0 | K128: 0 | L128: 0 | M128: 0 | N128: 0
A129: 1062 | B129: 20 | C129: 31 | D129: 32 | E129: 40 | F129: 41 | G129: 45 | H129: 16 | I129: 0 | J129: 0 | K129: 0 | L129: 0 | M129: 0 | N129: 0
A130: 1061 | B130: 4 | C130: 24 | D130: 27 | E130: 35 | F130: 37 | G130: 45 | H130: 65 | I130: 0 | J130: 0 | K130: 0 | L130: 0 | M130: 5 | N130: 0
A131: 1060 | B131: 3 | C131: 10 | D131: 24 | E131: 33 | F131: 38 | G131: 45 | H131: 19 | I131: 0 | J131: 0 | K131: 0 | L131: 0 | M131: 2 | N131: 0
A132: 1059 | B132: 7 | C132: 10 | D132: 22 | E132: 25 | F132: 34 | G132: 40 | H132: 0 | I132: 0 | J132: 0 | K132: 0 | L132: 0 | M132: 0 | N132: 0
A133: 1058 | B133: 11 | C133: 23 | D133: 25 | E133: 30 | F133: 32 | G133: 40 | H133: 56 | I133: 0 | J133: 0 | K133: 0 | L133: 0 | M133: 1 | N133: 0
A134: 1057 | B134: 8 | C134: 13 | D134: 19 | E134: 27 | F134: 40 | G134: 45 | H134: 17 | I134: 0 | J134: 0 | K134: 0 | L134: 0 | M134: 1 | N134: 0
A135: 1056 | B135: 13 | C135: 20 | D135: 24 | E135: 32 | F135: 36 | G135: 45 | H135: 13 | I135: 0 | J135: 0 | K135: 0 | L135: 0 | M135: 1 | N135: 0
A136: 1055 | B136: 4 | C136: 7 | D136: 12 | E136: 14 | F136: 22 | G136: 33 | H136: 63 | I136: 0 | J136: 0 | K136: 0 | L136: 0 | M136: 1 | N136: 0
A137: 1054 | B137: 14 | C137: 19 | D137: 27 | E137: 28 | F137: 30 | G137: 45 | H137: 36 | I137: 0 | J137: 0 | K137: 0 | L137: 0 | M137: 3 | N137: 0
A138: 1053 | B138: 22 | C138: 26 | D138: 29 | E138: 30 | F138: 34 | G138: 45 | H138: 155 | I138: 0 | J138: 0 | K138: 0 | L138: 0 | M138: 2 | N138: 0
A139: 1052 | B139: 5 | C139: 17 | D139: 26 | E139: 27 | F139: 35 | G139: 38 | H139: 4 | I139: 0 | J139: 0 | K139: 0 | L139: 0 | M139: 0 | N139: 0
A140: 1051 | B140: 21 | C140: 26 | D140: 30 | E140: 32 | F140: 33 | G140: 35 | H140: 224 | I140: 0 | J140: 0 | K140: 0 | L140: 0 | M140: 0 | N140: 0
A141: 1050 | B141: 6 | C141: 12 | D141: 31 | E141: 35 | F141: 38 | G141: 43 | H141: 135 | I141: 0 | J141: 0 | K141: 0 | L141: 1 | M141: 1 | N141: 0
A142: 1049 | B142: 3 | C142: 5 | D142: 13 | E142: 20 | F142: 21 | G142: 37 | H142: 92 | I142: 0 | J142: 0 | K142: 0 | L142: 0 | M142: 1 | N142: 0
A143: 1048 | B143: 6 | C143: 12 | D143: 17 | E143: 21 | F143: 32 | G143: 39 | H143: 1 | I143: 0 | J143: 0 | K143: 0 | L143: 0 | M143: 0 | N143: 0
A144: 1047 | B144: 2 | C144: 20 | D144: 33 | E144: 40 | F144: 42 | G144: 44 | H144: 112 | I144: 0 | J144: 0 | K144: 0 | L144: 0 | M144: 0 | N144: 0
A145: 1046 | B145: 7 | C145: 16 | D145: 25 | E145: 29 | F145: 35 | G145: 36 | H145: 173 | I145: 1 | J145: 0 | K145: 0 | L145: 3 | M145: 4 | N145: 1
A146: 1045 | B146: 6 | C146: 14 | D146: 15 | E146: 19 | F146: 21 | G146: 41 | H146: 58 | I146: 0 | J146: 0 | K146: 0 | L146: 0 | M146: 3 | N146: 0
A147: 1044 | B147: 12 | C147: 17 | D147: 20 | E147: 26 | F147: 28 | G147: 36 | H147: 71 | I147: 0 | J147: 0 | K147: 0 | L147: 0 | M147: 5 | N147: 0
A148: 1043 | B148: 3 | C148: 5 | D148: 12 | E148: 22 | F148: 26 | G148: 31 | H148: 0 | I148: 0 | J148: 0 | K148: 0 | L148: 0 | M148: 0 | N148: 0
A149: 1042 | B149: 5 | C149: 14 | D149: 15 | E149: 23 | F149: 34 | G149: 43 | H149: 0 | I149: 0 | J149: 0 | K149: 0 | L149: 0 | M149: 0 | N149: 0
A150: 1041 | B150: 6 | C150: 7 | D150: 9 | E150: 11 | F150: 17 | G150: 18 | H150: 75 | I150: 0 | J150: 0 | K150: 0 | L150: 0 | M150: 1 | N150: 0
A151: 1040 | B151: 8 | C151: 16 | D151: 26 | E151: 29 | F151: 31 | G151: 36 | H151: 68 | I151: 0 | J151: 0 | K151: 0 | L151: 0 | M151: 0 | N151: 0
A152: 1039 | B152: 2 | C152: 3 | D152: 6 | E152: 19 | F152: 36 | G152: 39 | H152: 16 | I152: 0 | J152: 0 | K152: 0 | L152: 0 | M152: 2 | N152: 0
A153: 1038 | B153: 7 | C153: 16 | D153: 24 | E153: 27 | F153: 37 | G153: 44 | H153: 30 | I153: 0 | J153: 0 | K153: 0 | L153: 0 | M153: 0 | N153: 0
A154: 1037 | B154: 2 | C154: 14 | D154: 15 | E154: 22 | F154: 27 | G154: 33 | H154: 20 | I154: 0 | J154: 0 | K154: 0 | L154: 0 | M154: 3 | N154: 0
A155: 1036 | B155: 2 | C155: 5 | D155: 22 | E155: 32 | F155: 34 | G155: 45 | H155: 37 | I155: 0 | J155: 0 | K155: 0 | L155: 0 | M155: 0 | N155: 0
A156: 1035 | B156: 9 | C156: 14 | D156: 34 | E156: 35 | F156: 41 | G156: 42 | H156: 0 | I156: 0 | J156: 0 | K156: 0 | L156: 0 | M156: 0 | N156: 0
A157: 1034 | B157: 26 | C157: 31 | D157: 32 | E157: 33 | F157: 38 | G157: 40 | H157: 19 | I157: 0 | J157: 0 | K157: 0 | L157: 0 | M157: 0 | N157: 0
A158: 1033 | B158: 3 | C158: 11 | D158: 15 | E158: 20 | F158: 35 | G158: 44 | H158: 0 | I158: 0 | J158: 0 | K158: 0 | L158: 0 | M158: 0 | N158: 0
A159: 1032 | B159: 1 | C159: 6 | D159: 12 | E159: 19 | F159: 36 | G159: 42 | H159: 106 | I159: 0 | J159: 0 | K159: 0 | L159: 0 | M159: 1 | N159: 0
A160: 1031 | B160: 6 | C160: 7 | D160: 22 | E160: 32 | F160: 35 | G160: 36 | H160: 24 | I160: 0 | J160: 0 | K160: 0 | L160: 0 | M160: 0 | N160: 0
A161: 1030 | B161: 2 | C161: 5 | D161: 11 | E161: 17 | F161: 24 | G161: 29 | H161: 45 | I161: 0 | J161: 0 | K161: 0 | L161: 0 | M161: 1 | N161: 0
A162: 1029 | B162: 12 | C162: 30 | D162: 32 | E162: 37 | F162: 39 | G162: 41 | H162: 17 | I162: 0 | J162: 0 | K162: 0 | L162: 0 | M162: 1 | N162: 0
A163: 1028 | B163: 5 | C163: 7 | D163: 12 | E163: 13 | F163: 18 | G163: 35 | H163: 52 | I163: 0 | J163: 0 | K163: 0 | L163: 0 | M163: 3 | N163: 0
A164: 1027 | B164: 14 | C164: 16 | D164: 27 | E164: 35 | F164: 39 | G164: 45 | H164: 131 | I164: 0 | J164: 0 | K164: 0 | L164: 0 | M164: 2 | N164: 0
A165: 1026 | B165: 5 | C165: 12 | D165: 13 | E165: 31 | F165: 32 | G165: 41 | H165: 68 | I165: 0 | J165: 0 | K165: 0 | L165: 2 | M165: 1 | N165: 0
A166: 1025 | B166: 8 | C166: 9 | D166: 20 | E166: 25 | F166: 29 | G166: 33 | H166: 48 | I166: 0 | J166: 0 | K166: 0 | L166: 0 | M166: 3 | N166: 0
A167: 1024 | B167: 9 | C167: 18 | D167: 20 | E167: 22 | F167: 38 | G167: 44 | H167: 47 | I167: 0 | J167: 0 | K167: 0 | L167: 0 | M167: 0 | N167: 0
A168: 1023 | B168: 10 | C168: 14 | D168: 16 | E168: 18 | F168: 29 | G168: 35 | H168: 153 | I168: 0 | J168: 0 | K168: 0 | L168: 1 | M168: 5 | N168: 0
A169: 1022 | B169: 5 | C169: 6 | D169: 11 | E169: 29 | F169: 42 | G169: 45 | H169: 96 | I169: 1 | J169: 0 | K169: 0 | L169: 6 | M169: 5 | N169: 1
A170: 1021 | B170: 12 | C170: 15 | D170: 17 | E170: 24 | F170: 29 | G170: 45 | H170: 54 | I170: 0 | J170: 0 | K170: 0 | L170: 0 | M170: 2 | N170: 0
A171: 1020 | B171: 12 | C171: 27 | D171: 29 | E171: 38 | F171: 41 | G171: 45 | H171: 35 | I171: 0 | J171: 0 | K171: 0 | L171: 0 | M171: 1 | N171: 0
A172: 1019 | B172: 1 | C172: 4 | D172: 13 | E172: 17 | F172: 34 | G172: 39 | H172: 106 | I172: 0 | J172: 0 | K172: 0 | L172: 0 | M172: 6 | N172: 0
A173: 1018 | B173: 3 | C173: 19 | D173: 21 | E173: 25 | F173: 37 | G173: 45 | H173: 0 | I173: 0 | J173: 0 | K173: 0 | L173: 0 | M173: 0 | N173: 0
A174: 1017 | B174: 12 | C174: 18 | D174: 22 | E174: 23 | F174: 30 | G174: 34 | H174: 91 | I174: 0 | J174: 0 | K174: 0 | L174: 0 | M174: 1 | N174: 0
A175: 1016 | B175: 15 | C175: 26 | D175: 28 | E175: 34 | F175: 41 | G175: 42 | H175: 0 | I175: 0 | J175: 0 | K175: 0 | L175: 0 | M175: 0 | N175: 0
A176: 1015 | B176: 14 | C176: 23 | D176: 31 | E176: 33 | F176: 37 | G176: 40 | H176: 5 | I176: 0 | J176: 0 | K176: 0 | L176: 0 | M176: 0 | N176: 0
A177: 1014 | B177: 3 | C177: 11 | D177: 14 | E177: 18 | F177: 26 | G177: 27 | H177: 35 | I177: 0 | J177: 0 | K177: 0 | L177: 0 | M177: 0 | N177: 0
A178: 1013 | B178: 21 | C178: 22 | D178: 26 | E178: 34 | F178: 36 | G178: 41 | H178: 0 | I178: 0 | J178: 0 | K178: 0 | L178: 0 | M178: 0 | N178: 0
A179: 1012 | B179: 5 | C179: 11 | D179: 18 | E179: 20 | F179: 35 | G179: 45 | H179: 271 | I179: 0 | J179: 0 | K179: 0 | L179: 0 | M179: 2 | N179: 0
A180: 1011 | B180: 1 | C180: 9 | D180: 12 | E180: 26 | F180: 35 | G180: 38 | H180: 72 | I180: 0 | J180: 0 | K180: 0 | L180: 0 | M180: 4 | N180: 0
A181: 1010 | B181: 9 | C181: 12 | D181: 15 | E181: 25 | F181: 34 | G181: 36 | H181: 0 | I181: 0 | J181: 0 | K181: 0 | L181: 0 | M181: 0 | N181: 0
A182: 1009 | B182: 15 | C182: 23 | D182: 29 | E182: 34 | F182: 40 | G182: 44 | H182: 59 | I182: 0 | J182: 0 | K182: 0 | L182: 0 | M182: 3 | N182: 0
A183: 1008 | B183: 9 | C183: 11 | D183: 30 | E183: 31 | F183: 41 | G183: 44 | H183: 0 | I183: 0 | J183: 0 | K183: 0 | L183: 0 | M183: 0 | N183: 0
A184: 1007 | B184: 8 | C184: 11 | D184: 16 | E184: 19 | F184: 21 | G184: 25 | H184: 42 | I184: 0 | J184: 0 | K184: 0 | L184: 0 | M184: 3 | N184: 0
A185: 1006 | B185: 8 | C185: 11 | D185: 15 | E185: 16 | F185: 17 | G185: 37 | H185: 3 | I185: 0 | J185: 0 | K185: 0 | L185: 0 | M185: 0 | N185: 0
A186: 1005 | B186: 8 | C186: 13 | D186: 18 | E186: 24 | F186: 27 | G186: 29 | H186: 189 | I186: 0 | J186: 0 | K186: 0 | L186: 0 | M186: 0 | N186: 0
A187: 1004 | B187: 7 | C187: 15 | D187: 30 | E187: 37 | F187: 39 | G187: 44 | H187: 216 | I187: 1 | J187: 0 | K187: 1 | L187: 0 | M187: 9 | N187: 1
A188: 1003 | B188: 1 | C188: 4 | D188: 29 | E188: 39 | F188: 43 | G188: 45 | H188: 14 | I188: 0 | J188: 0 | K188: 0 | L188: 0 | M188: 1 | N188: 0
A189: 1002 | B189: 17 | C189: 25 | D189: 33 | E189: 35 | F189: 38 | G189: 45 | H189: 0 | I189: 0 | J189: 0 | K189: 0 | L189: 0 | M189: 0 | N189: 0
A190: 1001 | B190: 6 | C190: 10 | D190: 12 | E190: 14 | F190: 20 | G190: 42 | H190: 5 | I190: 0 | J190: 0 | K190: 0 | L190: 0 | M190: 0 | N190: 0
A191: 1000 | B191: 2 | C191: 8 | D191: 19 | E191: 22 | F191: 32 | G191: 42 | H191: 3 | I191: 0 | J191: 0 | K191: 0 | L191: 0 | M191: 0 | N191: 0
A192: 999 | B192: 1 | C192: 3 | D192: 9 | E192: 14 | F192: 18 | G192: 28 | H192: 98 | I192: 0 | J192: 0 | K192: 0 | L192: 0 | M192: 1 | N192: 0
A193: 998 | B193: 13 | C193: 17 | D193: 18 | E193: 20 | F193: 42 | G193: 45 | H193: 6 | I193: 0 | J193: 0 | K193: 0 | L193: 0 | M193: 0 | N193: 0
A194: 997 | B194: 4 | C194: 7 | D194: 14 | E194: 16 | F194: 24 | G194: 44 | H194: 32 | I194: 0 | J194: 0 | K194: 0 | L194: 0 | M194: 0 | N194: 0
A195: 996 | B195: 6 | C195: 11 | D195: 15 | E195: 24 | F195: 32 | G195: 39 | H195: 112 | I195: 0 | J195: 0 | K195: 0 | L195: 0 | M195: 1 | N195: 0
A196: 995 | B196: 1 | C196: 4 | D196: 13 | E196: 29 | F196: 38 | G196: 39 | H196: 112 | I196: 0 | J196: 0 | K196: 0 | L196: 1 | M196: 9 | N196: 0
A197: 994 | B197: 1 | C197: 3 | D197: 8 | E197: 24 | F197: 27 | G197: 35 | H197: 0 | I197: 0 | J197: 0 | K197: 0 | L197: 0 | M197: 0 | N197: 0
A198: 993 | B198: 6 | C198: 14 | D198: 16 | E198: 18 | F198: 24 | G198: 42 | H198: 34 | I198: 0 | J198: 0 | K198: 0 | L198: 0 | M198: 0 | N198: 0
A199: 992 | B199: 12 | C199: 20 | D199: 26 | E199: 33 | F199: 44 | G199: 45 | H199: 76 | I199: 0 | J199: 0 | K199: 0 | L199: 0 | M199: 7 | N199: 0
A200: 991 | B200: 13 | C200: 18 | D200: 25 | E200: 31 | F200: 33 | G200: 44 | H200: 118 | I200: 0 | J200: 0 | K200: 0 | L200: 1 | M200: 5 | N200: 0
... 990 more rows

Sheet 1206
A1: NO | B1: b1 | C1: b2 | D1: b3 | E1: b4 | F1: b5 | G1: n6
A2: 1 | B2: 6 | C2: 7 | D2: 10 | E2: 11 | F2: 20 | G2: 45
A3: =A2+1 -> 2 | B3: 2 | C3: 7 | D3: 17 | E3: 28 | F3: 35 | G3: 39
A4: =A3+1 -> 3 | B4: 6 | C4: 10 | D4: 19 | E4: 25 | F4: 33 | G4: 35
A5: 4 | B5: 3 | C5: 17 | D5: 20 | E5: 24 | F5: 35 | G5: 45
A6: 5 | B6: 5 | C6: 15 | D6: 18 | E6: 29 | F6: 36 | G6: 41
A7: 6 | B7: 6 | C7: 15 | D7: 20 | E7: 23 | F7: 37 | G7: 43
A8: 7 | B8: 8 | C8: 15 | D8: 19 | E8: 23 | F8: 38 | G8: 41
A9: 8 | B9: 5 | C9: 11 | D9: 19 | E9: 24 | F9: 40 | G9: 45
A10: 9 | B10: 9 | C10: 16 | D10: 18 | E10: 23 | F10: 35 | G10: 43
A11: 10 | B11: 7 | C11: 13 | D11: 19 | E11: 28 | F11: 33 | G11: 44
A12: 11 | B12: 7 | C12: 11 | D12: 18 | E12: 29 | F12: 37 | G12: 42
A13: 12 | B13: 1 | C13: 7 | D13: 18 | E13: 26 | F13: 37 | G13: 38
A14: 13 | B14: 2 | C14: 6 | D14: 17 | E14: 29 | F14: 39 | G14: 45
A15: 14 | B15: 2 | C15: 8 | D15: 14 | E15: 25 | F15: 33 | G15: 45
A16: 15 | B16: 2 | C16: 8 | D16: 17 | E16: 26 | F16: 29 | G16: 45
A17: 16 | B17: 2 | C17: 8 | D17: 19 | E17: 31 | F17: 33 | G17: 45
A18: 17 | B18: 2 | C18: 8 | D18: 20 | E18: 27 | F18: 33 | G18: 41
A19: 18 | B19: 2 | C19: 11 | D19: 25 | E19: 26 | F19: 29 | G19: 45
A20: 19 | B20: 2 | C20: 13 | D20: 17 | E20: 18 | F20: 32 | G20: 45
A21: 20 | B21: 2 | C21: 13 | D21: 17 | E21: 22 | F21: 28 | G21: 45
A22: 21 | B22: 3 | C22: 10 | D22: 16 | E22: 27 | F22: 39 | G22: 43
A23: 22 | B23: 3 | C23: 16 | D23: 18 | E23: 20 | F23: 27 | G23: 43
A24: 23 | B24: 3 | C24: 16 | D24: 18 | E24: 20 | F24: 31 | G24: 43
A25: 24 | B25: 3 | C25: 16 | D25: 18 | E25: 27 | F25: 31 | G25: 43
A26: 25 | B26: 4 | C26: 5 | D26: 18 | E26: 21 | F26: 37 | G26: 42
A27: 26 | B27: 4 | C27: 5 | D27: 18 | E27: 21 | F27: 38 | G27: 41
A28: 27 | B28: 4 | C28: 9 | D28: 13 | E28: 27 | F28: 32 | G28: 42
A29: 28 | B29: 5 | C29: 6 | D29: 11 | E29: 16 | F29: 29 | G29: 45
A30: 29 | B30: 5 | C30: 6 | D30: 16 | E30: 18 | F30: 37 | G30: 45
A31: 30 | B31: 5 | C31: 8 | D31: 14 | E31: 27 | F31: 35 | G31: 38
A32: 31 | B32: 5 | C32: 9 | D32: 12 | E32: 26 | F32: 41 | G32: 45
A33: 32 | B33: 5 | C33: 9 | D33: 14 | E33: 26 | F33: 35 | G33: 38
A34: 33 | B34: 5 | C34: 9 | D34: 14 | E34: 27 | F34: 34 | G34: 38
A35: 34 | B35: 5 | C35: 11 | D35: 12 | E35: 16 | F35: 38 | G35: 45
A36: 35 | B36: 5 | C36: 12 | D36: 21 | E36: 26 | F36: 29 | G36: 45
A37: 36 | B37: 5 | C37: 12 | D37: 21 | E37: 27 | F37: 35 | G37: 38
A38: 37 | B38: 5 | C38: 13 | D38: 18 | E38: 22 | F38: 31 | G38: 42
A39: 38 | B39: 5 | C39: 14 | D39: 17 | E39: 18 | F39: 31 | G39: 42
A40: 39 | B40: 5 | C40: 14 | D40: 17 | E40: 26 | F40: 27 | G40: 38
A41: 40 | B41: 5 | C41: 17 | D41: 25 | E41: 26 | F41: 27 | G41: 38
A42: 41 | B42: 7 | C42: 8 | D42: 18 | E42: 21 | F42: 29 | G42: 44
A43: 42 | B43: 7 | C43: 9 | D43: 10 | E43: 29 | F43: 34 | G43: 38
A44: 43 | B44: 7 | C44: 9 | D44: 12 | E44: 26 | F44: 35 | G44: 38
A45: 44 | B45: 7 | C45: 10 | D45: 15 | E45: 21 | F45: 36 | G45: 38
A46: 45 | B46: 7 | C46: 10 | D46: 16 | E46: 25 | F46: 33 | G46: 36
A47: 46 | B47: 7 | C47: 11 | D47: 18 | E47: 20 | F47: 26 | G47: 45
A48: 47 | B48: 7 | C48: 11 | D48: 18 | E48: 20 | F48: 28 | G48: 43
A49: 48 | B49: 7 | C49: 11 | D49: 18 | E49: 24 | F49: 29 | G49: 38
A50: 49 | B50: 7 | C50: 12 | D50: 18 | E50: 19 | F50: 31 | G50: 40
A51: 50 | B51: 7 | C51: 13 | D51: 16 | E51: 18 | F51: 29 | G51: 44
A52: 51 | B52: 7 | C52: 13 | D52: 18 | E52: 25 | F52: 37 | G52: 38
A53: 52 | B53: 7 | C53: 13 | D53: 18 | E53: 29 | F53: 33 | G53: 38
A54: 53 | B54: 7 | C54: 15 | D54: 18 | E54: 19 | F54: 24 | G54: 44
A55: 54 | B55: 7 | C55: 19 | D55: 21 | E55: 24 | F55: 31 | G55: 36
A56: 55 | B56: 8 | C56: 10 | D56: 13 | E56: 27 | F56: 31 | G56: 42
A57: 56 | B57: 8 | C57: 10 | D57: 19 | E57: 27 | F57: 29 | G57: 45
A58: 57 | B58: 8 | C58: 12 | D58: 17 | E58: 19 | F58: 37 | G58: 45
A59: 58 | B59: 8 | C59: 12 | D59: 17 | E59: 27 | F59: 29 | G59: 45
A60: 59 | B60: 8 | C60: 14 | D60: 15 | E60: 17 | F60: 39 | G60: 45
A61: 60 | B61: 8 | C61: 14 | D61: 15 | E61: 27 | F61: 29 | G61: 45
A62: 61 | B62: 9 | C62: 11 | D62: 12 | E62: 26 | F62: 31 | G62: 38
A63: 62 | B63: 9 | C63: 11 | D63: 16 | E63: 17 | F63: 36 | G63: 38
A64: 63 | B64: 9 | C64: 12 | D64: 15 | E64: 16 | F64: 37 | G64: 38
A65: 64 | B65: 9 | C65: 12 | D65: 16 | E65: 21 | F65: 26 | G65: 43
A66: 65
A67: 66
A68: =A67+1 -> 67
A69: 68
A70: 69
A71: 70
A72: 71
A73: 72
A74: 73
A75: 74
A76: 75
A77: 76
A78: 77
A79: 78
A80: 79
A81: 80
A82: 81
A83: 82
A84: 83
A85: 84
A86: 85
A87: 86
A88: 87
A89: 88
A90: 89
A91: 90
A92: 91
A93: 92
A94: 93
A95: 94
A96: 95
A97: 96
A98: 97
A99: 98
A100: 99
A101: 100
A102: 101
A103: 102
A104: 103
A105: 104
A106: 105
A107: 106
A108: 107
A109: 108
A110: 109
A111: 110
A112: 111
A113: 112
A114: 113
A115: 114
A116: 115
A117: 116
A118: 117
A119: 118
A120: 119
A121: 120
A122: 121
A123: 122
A124: 123
A125: 124
A126: 125
A127: 126
A128: 127
A129: 128
A130: 129
A131: 130
A132: =A131+1 -> 131
A133: 132
A134: 133
A135: 134
A136: 135
A137: 136
A138: 137
A139: 138
A140: 139
A141: 140
A142: 141
A143: 142
A144: 143
A145: 144
A146: 145
A147: 146
A148: 147
A149: 148
A150: 149
A151: 150
A152: 151
A153: 152
A154: 153
A155: 154
A156: 155
A157: 156
A158: 157
A159: 158
A160: 159
A161: 160
A162: 161
A163: 162
A164: 163
A165: 164
A166: 165
A167: 166
A168: 167
A169: 168
A170: 169
A171: 170
A172: 171
A173: 172
A174: 173
A175: 174
A176: 175
A177: 176
A178: 177
A179: 178
A180: 179
A181: 180
A182: 181
A183: 182
A184: 183
A185: 184
A186: 185
A187: 186
A188: 187
A189: 188
A190: 189
A191: =A190+1 -> 190
A192: 191
A193: 192
A194: 193
A195: 194
A196: 195
A197: 196
A198: 197
A199: 198
A200: 199
... 546 more rows
